Workbook

Sheet formule (hidden)
A1: Originele regressieformule MEY (incl BTW)
A2: kosten = | B2: 56.9 | C2: 29 | D2: * wortel(schade) | E2: gulden
A3: kosten = | B3: =56.9/2.20371 -> 25.8200943 | C3: =29/SQRT(2.20371) -> 19.53533111 | D3: * wortel(schade) | E3: euro
H5: 0.322
A6: Ophoging regressieformule tm 1-1-2001
A7: kosten = | B7: =B2*(1+H5) -> 75.2218 | C7: =C2*(1+H5) -> 38.338 | D7: * wortel(schade) | E7: gulden
A8: kosten = | B8: =B3*(1+H5) -> 34.13416466 | C8: =C3*(1+H5) -> 25.82570773 | D8: * wortel(schade) | E8: euro
A11: index CAO-lonen particuliere bedrijven / fin. en zakelijke dienstverlening Bron: CBS
A12: jaar | D12: loonindex | E12: consumentenprijsindex
A13: 2001 | D13: =indexcijfers!C11 -> 0.05671641791 | E13: 0.042
A14: 2002 | D14: =indexcijfers!C12 -> 0.03389830508 | E14: 0.033
A15: 2003 | D15: 0.026 | E15: 0.021
A16: 2004 | D16: 0.03 | E16: 0.012
A17: 2005 | D17: 0.03 | E17: 0.017
A18: 2006 | D18: 0.022 | E18: 0.012
A19: 2007 | D19: 0.018 | E19: 0.016 | F19: =(1+D19)/(1+E19)-1 -> 0.001968503937
A20: 2008 | D20: 0.035 | E20: 0.025 | F20: 0.009756097561
A21: 2009 | D21: =indexcijfers!B22 -> 0.022 | E21: =indexcijfers!B39 -> 0.012 | F21: 0.009881422925
A22: 2010 | D22: =indexcijfers!B23 -> 0.01 | E22: =indexcijfers!B40 -> 0.013 | F22: -0.002961500494
A23: 2011 | D23: =indexcijfers!B24 -> 0.013 | E23: =indexcijfers!B41 -> 0.023 | F23: -0.009775171065
A24: 2012 | D24: =indexcijfers!B25 -> 0.015 | E24: =indexcijfers!B42 -> 0.025 | F24: =(1+D24)/(1+E24)-1 -> -0.009756097561
A25: 2013 | D25: =indexcijfers!B26 -> 0.01 | E25: =indexcijfers!B43 -> 0.025 | F25: -0.01463414634
A26: 2014 | D26: =indexcijfers!B27 -> 0.011 | E26: =indexcijfers!B44 -> 0.01 | F26: 0.0009900990099
D27: =(1+D13)*(1+D14)*(1+D15)*(1+D16)*(1+D17)*(1+D18)*(1+D19)*(1+D20)*(1+D21)*(1+D22)*(1+D23)*(1+D24)*(1+D25)*(1+D26)-1 -> 0.3877696925 | E27: =(1+E13)*(1+E14)*(1+E15)*(1+E16)*(1+E17)*(1+E18)*(1+E19)*(1+E20)*(1+E21)*(1+E22)*(1+E23)*(1+E24)*(1+E25)*(1+E26)-1 -> 0.3265634583 | F27: =(1+F19)*(1+F20)*(1+F21)*(1+F22)*(1+F23)*(1+F25)*(1+F24)*(1+F26)-1 -> -0.01472799108
A30: regressieformule 2013 (incl BTW)
A31: kosten = | B31: =B7*(1+D27) -> 104.3905343 | C31: + | D31: =+C7*(1+D27)/SQRT(1+E27) -> 46.19370928 | E31: * wortel(schade) | F31: gulden
A32: kosten = | B32: =B8*(1+D27) -> 47.37035919 | C32: + | D32: =C8*(1+D27)/SQRT(1+E27) -> 31.11756573 | E32: * wortel(schade)
A34: regressieformule 2013 (excl BTW)
A35: kosten = | B35: =B31/1.19 -> 87.72313803 | C35: + | D35: =D31/1.19 -> 38.81824309 | E35: * wortel(schade) | F35: gulden
A36: kosten = | B36: =B32/1.19 -> 39.80702453 | C36: + | D36: =D32/1.19 -> 26.1492149 | E36: * wortel(schade)
A39: opslagen tabel | C39: basisverhoging | D39: indexatie ingevoerd per 1-1-08 | E39: totaal verhoging | F39: opmerking
A40: < 25.000 | C40: 0.1 | E40: =C40 -> 0.1 | F40: boven op kosten conform regressieformule
A41: 25.000 tot 45.000 | C41: 0.125 | E41: =C41 -> 0.125 | F41: boven op kosten conform regressieformule
A42: 45.000 tot 75.000 | C42: 0.175 | D42: =F27 -> -0.01472799108 | E42: =C42*(1+D42) -> 0.1724226016 | F42: kosten bij 45.000 (afgerond) + percentage van (schadebedrag - 45.000)
A43: 75.000 tot 100.000 | C43: 0.15 | D43: =F27 -> -0.01472799108 | E43: =C43*(1+D43) -> 0.1477908013 | F43: kosten bij 75.000 (afgerond) + percentage van (schadebedrag - 75.000)
A44: > 100.000 | C44: 0.1 | D44: =F27 -> -0.01472799108 | E44: =C44*(1+D44) -> 0.09852720089 | F44: kosten bij 100.000 (afgerond) + percentage van (schadebedrag - 100.000)
A45: schade bedragen van | C45: BGK:
A46: … tot … | C46: vastbedrag
A47: 250000 | B47: 300000 | C47: 11000 | D47: 0.08
A48: 300000 | B48: 400000 | C48: 20000 | D48: 0.05
A49: 400000 | B49: 500000 | C49: 30000 | D49: 0.025
A50: 500000 | B50: 750000 | C50: 32500 | D50: 0.02
A51: 750000 | B51: 1000000 | C51: 40000 | D51: 0.01

Sheet kosten tabel 2015 (hidden)
A1: schadebedrag | C1: kosten volgens tabel oud | E1: Basis tabel 2011 | H1: Kosten volgens tabel 2015 inclusief €225 (excl. BTW) in zaken >3000 <=50.000, daarna aflopend
C2: excl BTW | D2: incl BTW | E2: Excl. BTW | F2: Incl. BTW 19% | H2: Excl. BTW | I2: Incl. BTW 21%
A3: euro
A4: 100 | E4: 600 | F4: =E4*1.19 -> 714 | H4: =E4 -> 600 | I4: =H4*1.21 -> 726
A5: =A4+100 -> 200 | E5: 600 | F5: 714 | H5: =E5 -> 600 | I5: =H5*1.21 -> 726
A6: =A5+100 -> 300 | E6: 600 | F6: 714 | H6: 600 | I6: 726
A7: =A6+100 -> 400 | E7: 600 | F7: 714 | H7: 600 | I7: 726
A8: =A7+100 -> 500 | B8: =(formule!$B$36+formule!$D$36*SQRT(A8)) -> 624.5212452 | C8: =CEILING((formule!$B$36+formule!$D$36*SQRT(A8))/100,1)*100 -> 700 | D8: =C8*1.19 -> 833 | E8: =CEILING(((1+formule!$E$40)*(formule!$B$36+formule!$D$36*SQRT(A8)))/100,1)*100 -> 700 | F8: 833 | H8: 700 | I8: 847
A9: =A8+100 -> 600 | B9: =(formule!$B$36+formule!$D$36*SQRT(A9)) -> 680.3293613 | C9: =CEILING((formule!$B$36+formule!$D$36*SQRT(A9))/100,1)*100 -> 700 | D9: =C9*1.19 -> 833 | E9: =CEILING(((1+formule!$E$40)*(formule!$B$36+formule!$D$36*SQRT(A9)))/100,1)*100 -> 800 | F9: 952 | H9: 800 | I9: 968
A10: =A9+100 -> 700 | B10: =(formule!$B$36+formule!$D$36*SQRT(A10)) -> 731.6502205 | C10: =CEILING((formule!$B$36+formule!$D$36*SQRT(A10))/100,1)*100 -> 800 | D10: 952 | E10: =CEILING(((1+formule!$E$40)*(formule!$B$36+formule!$D$36*SQRT(A10)))/100,1)*100 -> 900 | F10: 1071 | H10: 900 | I10: 1089
A11: 800 | B11: =(formule!$B$36+formule!$D$36*SQRT(A11)) -> 779.4185116 | C11: =CEILING((formule!$B$36+formule!$D$36*SQRT(A11))/100,1)*100 -> 800 | D11: 952 | E11: =CEILING(((1+formule!$E$40)*(formule!$B$36+formule!$D$36*SQRT(A11)))/100,1)*100 -> 900 | F11: 1071 | H11: 900 | I11: 1089
A12: 900 | B12: =(formule!$B$36+formule!$D$36*SQRT(A12)) -> 824.2834714 | C12: =CEILING((formule!$B$36+formule!$D$36*SQRT(A12))/100,1)*100 -> 900 | D12: 1071 | E12: =CEILING(((1+formule!$E$40)*(formule!$B$36+formule!$D$36*SQRT(A12)))/100,1)*100 -> 1000 | F12: 1190 | H12: 1000 | I12: 1210
A13: 1000 | B13: =(formule!$B$36+formule!$D$36*SQRT(A13)) -> 866.7178055 | C13: =CEILING((formule!$B$36+formule!$D$36*SQRT(A13))/100,1)*100 -> 900 | D13: 1071 | E13: =CEILING(((1+formule!$E$40)*(formule!$B$36+formule!$D$36*SQRT(A13)))/100,1)*100 -> 1000 | F13: 1190 | H13: 1000 | I13: 1210
A14: 1100 | B14: =(formule!$B$36+formule!$D$36*SQRT(A14)) -> 907.0783683 | C14: =CEILING((formule!$B$36+formule!$D$36*SQRT(A14))/100,1)*100 -> 1000 | D14: 1190 | E14: =CEILING(((1+formule!$E$40)*(formule!$B$36+formule!$D$36*SQRT(A14)))/100,1)*100 -> 1000 | F14: 1190 | H14: 1000 | I14: 1210
A15: 1200 | B15: =(formule!$B$36+formule!$D$36*SQRT(A15)) -> 945.6424001 | C15: =CEILING((formule!$B$36+formule!$D$36*SQRT(A15))/100,1)*100 -> 1000 | D15: 1190 | E15: =CEILING(((1+formule!$E$40)*(formule!$B$36+formule!$D$36*SQRT(A15)))/100,1)*100 -> 1100 | F15: 1309 | H15: 1100 | I15: 1331
A16: 1300 | B16: =(formule!$B$36+formule!$D$36*SQRT(A16)) -> 982.6303758 | C16: =CEILING((formule!$B$36+formule!$D$36*SQRT(A16))/100,1)*100 -> 1000 | D16: 1190 | E16: =CEILING(((1+formule!$E$40)*(formule!$B$36+formule!$D$36*SQRT(A16)))/100,1)*100 -> 1100 | F16: 1309 | H16: 1100 | I16: 1331
A17: 1400 | B17: =(formule!$B$36+formule!$D$36*SQRT(A17)) -> 1018.221055 | C17: =CEILING((formule!$B$36+formule!$D$36*SQRT(A17))/100,1)*100 -> 1100 | D17: 1309 | E17: =CEILING(((1+formule!$E$40)*(formule!$B$36+formule!$D$36*SQRT(A17)))/100,1)*100 -> 1200 | F17: 1428 | H17: 1200 | I17: 1452
A18: 1500 | B18: =(formule!$B$36+formule!$D$36*SQRT(A18)) -> 1052.561763 | C18: =CEILING((formule!$B$36+formule!$D$36*SQRT(A18))/100,1)*100 -> 1100 | D18: 1309 | E18: =CEILING(((1+formule!$E$40)*(formule!$B$36+formule!$D$36*SQRT(A18)))/100,1)*100 -> 1200 | F18: 1428 | H18: 1200 | I18: 1452
A19: 1600 | B19: =(formule!$B$36+formule!$D$36*SQRT(A19)) -> 1085.77562 | C19: =CEILING((formule!$B$36+formule!$D$36*SQRT(A19))/100,1)*100 -> 1100 | D19: 1309 | E19: =CEILING(((1+formule!$E$40)*(formule!$B$36+formule!$D$36*SQRT(A19)))/100,1)*100 -> 1200 | F19: 1428 | H19: 1200 | I19: 1452
A20: 1700 | B20: =(formule!$B$36+formule!$D$36*SQRT(A20)) -> 1117.966775 | C20: =CEILING((formule!$B$36+formule!$D$36*SQRT(A20))/100,1)*100 -> 1200 | D20: 1428 | E20: =CEILING(((1+formule!$E$40)*(formule!$B$36+formule!$D$36*SQRT(A20)))/100,1)*100 -> 1300 | F20: 1547 | H20: 1300 | I20: 1573
A21: 1800 | B21: =(formule!$B$36+formule!$D$36*SQRT(A21)) -> 1149.224255 | C21: =CEILING((formule!$B$36+formule!$D$36*SQRT(A21))/100,1)*100 -> 1200 | D21: 1428 | E21: =CEILING(((1+formule!$E$40)*(formule!$B$36+formule!$D$36*SQRT(A21)))/100,1)*100 -> 1300 | F21: 1547 | H21: 1300 | I21: 1573
A22: 1900 | B22: =(formule!$B$36+formule!$D$36*SQRT(A22)) -> 1179.624876 | C22: =CEILING((formule!$B$36+formule!$D$36*SQRT(A22))/100,1)*100 -> 1200 | D22: 1428 | E22: =CEILING(((1+formule!$E$40)*(formule!$B$36+formule!$D$36*SQRT(A22)))/100,1)*100 -> 1300 | F22: 1547 | H22: 1300 | I22: 1573
A23: 2000 | B23: =(formule!$B$36+formule!$D$36*SQRT(A23)) -> 1209.235466 | C23: =CEILING((formule!$B$36+formule!$D$36*SQRT(A23))/100,1)*100 -> 1300 | D23: 1547 | E23: =CEILING(((1+formule!$E$40)*(formule!$B$36+formule!$D$36*SQRT(A23)))/100,1)*100 -> 1400 | F23: 1666 | H23: 1400 | I23: 1694
A24: 2100 | B24: =(formule!$B$36+formule!$D$36*SQRT(A24)) -> 1238.114591 | C24: =CEILING((formule!$B$36+formule!$D$36*SQRT(A24))/100,1)*100 -> 1300 | D24: 1547 | E24: =CEILING(((1+formule!$E$40)*(formule!$B$36+formule!$D$36*SQRT(A24)))/100,1)*100 -> 1400 | F24: 1666 | H24: 1400 | I24: 1694
A25: 2200 | B25: =(formule!$B$36+formule!$D$36*SQRT(A25)) -> 1266.313921 | C25: =CEILING((formule!$B$36+formule!$D$36*SQRT(A25))/100,1)*100 -> 1300 | D25: 1547 | E25: =CEILING(((1+formule!$E$40)*(formule!$B$36+formule!$D$36*SQRT(A25)))/100,1)*100 -> 1400 | F25: 1666 | H25: 1400 | I25: 1694
A26: 2300 | B26: =(formule!$B$36+formule!$D$36*SQRT(A26)) -> 1293.879316 | C26: =CEILING((formule!$B$36+formule!$D$36*SQRT(A26))/100,1)*100 -> 1300 | D26: 1547 | E26: =CEILING(((1+formule!$E$40)*(formule!$B$36+formule!$D$36*SQRT(A26)))/100,1)*100 -> 1500 | F26: 1785 | H26: 1500 | I26: 1815
A27: 2400 | B27: =(formule!$B$36+formule!$D$36*SQRT(A27)) -> 1320.851698 | C27: =CEILING((formule!$B$36+formule!$D$36*SQRT(A27))/100,1)*100 -> 1400 | D27: 1666 | E27: =CEILING(((1+formule!$E$40)*(formule!$B$36+formule!$D$36*SQRT(A27)))/100,1)*100 -> 1500 | F27: 1785 | H27: 1500 | I27: 1815
A28: 2500 | B28: =(formule!$B$36+formule!$D$36*SQRT(A28)) -> 1347.267769 | C28: =CEILING((formule!$B$36+formule!$D$36*SQRT(A28))/100,1)*100 -> 1400 | D28: 1666 | E28: =CEILING(((1+formule!$E$40)*(formule!$B$36+formule!$D$36*SQRT(A28)))/100,1)*100 -> 1500 | F28: 1785 | H28: 1500 | I28: 1815
A29: 2600 | B29: =(formule!$B$36+formule!$D$36*SQRT(A29)) -> 1373.160595 | C29: =CEILING((formule!$B$36+formule!$D$36*SQRT(A29))/100,1)*100 -> 1400 | D29: 1666 | E29: =CEILING(((1+formule!$E$40)*(formule!$B$36+formule!$D$36*SQRT(A29)))/100,1)*100 -> 1600 | F29: 1904 | H29: 1600 | I29: 1936
A30: 2700 | B30: =(formule!$B$36+formule!$D$36*SQRT(A30)) -> 1398.560088 | C30: =CEILING((formule!$B$36+formule!$D$36*SQRT(A30))/100,1)*100 -> 1400 | D30: 1666 | E30: =CEILING(((1+formule!$E$40)*(formule!$B$36+formule!$D$36*SQRT(A30)))/100,1)*100 -> 1600 | F30: 1904 | H30: =E30 -> 1600 | I30: 1936
A31: 2800 | B31: =(formule!$B$36+formule!$D$36*SQRT(A31)) -> 1423.493416 | C31: =CEILING((formule!$B$36+formule!$D$36*SQRT(A31))/100,1)*100 -> 1500 | D31: 1785 | E31: =CEILING(((1+formule!$E$40)*(formule!$B$36+formule!$D$36*SQRT(A31)))/100,1)*100 -> 1600 | F31: 1904 | H31: =E31 -> 1600 | I31: 1936
A32: 2900 | B32: =(formule!$B$36+formule!$D$36*SQRT(A32)) -> 1447.985343 | C32: =CEILING((formule!$B$36+formule!$D$36*SQRT(A32))/100,1)*100 -> 1500 | D32: 1785 | E32: =CEILING(((1+formule!$E$40)*(formule!$B$36+formule!$D$36*SQRT(A32)))/100,1)*100 -> 1600 | F32: 1904 | H32: =E32 -> 1600 | I32: 1936
A33: 3000 | B33: =(formule!$B$36+formule!$D$36*SQRT(A33)) -> 1472.058511 | C33: =CEILING((formule!$B$36+formule!$D$36*SQRT(A33))/100,1)*100 -> 1500 | D33: 1785 | E33: =CEILING(((1+formule!$E$40)*(formule!$B$36+formule!$D$36*SQRT(A33)))/100,1)*100 -> 1700 | F33: 2023 | H33: =E33 -> 1700 | I33: 2057
A34: 3100 | B34: =(formule!$B$36+formule!$D$36*SQRT(A34)) -> 1495.733693 | C34: =CEILING((formule!$B$36+formule!$D$36*SQRT(A34))/100,1)*100 -> 1500 | D34: 1785 | E34: =CEILING(((1+formule!$E$40)*(formule!$B$36+formule!$D$36*SQRT(A34)))/100,1)*100 -> 1700 | F34: 2023 | H34: =E34+225 -> 1925 | I34: 2329.25
A35: 3200 | B35: =(formule!$B$36+formule!$D$36*SQRT(A35)) -> 1519.029999 | C35: =CEILING((formule!$B$36+formule!$D$36*SQRT(A35))/100,1)*100 -> 1600 | D35: 1904 | E35: =CEILING(((1+formule!$E$40)*(formule!$B$36+formule!$D$36*SQRT(A35)))/100,1)*100 -> 1700 | F35: 2023 | H35: =E35+225 -> 1925 | I35: 2329.25
A36: 3300 | B36: =(formule!$B$36+formule!$D$36*SQRT(A36)) -> 1541.965056 | C36: =CEILING((formule!$B$36+formule!$D$36*SQRT(A36))/100,1)*100 -> 1600 | D36: 1904 | E36: =CEILING(((1+formule!$E$40)*(formule!$B$36+formule!$D$36*SQRT(A36)))/100,1)*100 -> 1700 | F36: 2023 | H36: 1925 | I36: 2329.25
A37: 3400 | B37: =(formule!$B$36+formule!$D$36*SQRT(A37)) -> 1564.555166 | C37: =CEILING((formule!$B$36+formule!$D$36*SQRT(A37))/100,1)*100 -> 1600 | D37: 1904 | E37: =CEILING(((1+formule!$E$40)*(formule!$B$36+formule!$D$36*SQRT(A37)))/100,1)*100 -> 1800 | F37: 2142 | H37: 2025 | I37: 2450.25
A38: 3500 | B38: =(formule!$B$36+formule!$D$36*SQRT(A38)) -> 1586.81544 | C38: =CEILING((formule!$B$36+formule!$D$36*SQRT(A38))/100,1)*100 -> 1600 | D38: 1904 | E38: =CEILING(((1+formule!$E$40)*(formule!$B$36+formule!$D$36*SQRT(A38)))/100,1)*100 -> 1800 | F38: 2142 | H38: 2025 | I38: 2450.25
A39: 3600 | B39: =(formule!$B$36+formule!$D$36*SQRT(A39)) -> 1608.759918 | C39: =CEILING((formule!$B$36+formule!$D$36*SQRT(A39))/100,1)*100 -> 1700 | D39: 2023 | E39: =CEILING(((1+formule!$E$40)*(formule!$B$36+formule!$D$36*SQRT(A39)))/100,1)*100 -> 1800 | F39: 2142 | H39: 2025 | I39: 2450.25
A40: 3700 | B40: =(formule!$B$36+formule!$D$36*SQRT(A40)) -> 1630.40167 | C40: =CEILING((formule!$B$36+formule!$D$36*SQRT(A40))/100,1)*100 -> 1700 | D40: 2023 | E40: =CEILING(((1+formule!$E$40)*(formule!$B$36+formule!$D$36*SQRT(A40)))/100,1)*100 -> 1800 | F40: 2142 | H40: 2025 | I40: 2450.25
A41: 3800 | B41: =(formule!$B$36+formule!$D$36*SQRT(A41)) -> 1651.752889 | C41: =CEILING((formule!$B$36+formule!$D$36*SQRT(A41))/100,1)*100 -> 1700 | D41: 2023 | E41: =CEILING(((1+formule!$E$40)*(formule!$B$36+formule!$D$36*SQRT(A41)))/100,1)*100 -> 1900 | F41: 2261 | H41: 2125 | I41: 2571.25
A42: 3900 | B42: =(formule!$B$36+formule!$D$36*SQRT(A42)) -> 1672.824971 | C42: =CEILING((formule!$B$36+formule!$D$36*SQRT(A42))/100,1)*100 -> 1700 | D42: 2023 | E42: =CEILING(((1+formule!$E$40)*(formule!$B$36+formule!$D$36*SQRT(A42)))/100,1)*100 -> 1900 | F42: 2261 | H42: 2125 | I42: 2571.25
A43: 4000 | B43: =(formule!$B$36+formule!$D$36*SQRT(A43)) -> 1693.628587 | C43: =CEILING((formule!$B$36+formule!$D$36*SQRT(A43))/100,1)*100 -> 1700 | D43: 2023 | E43: =CEILING(((1+formule!$E$40)*(formule!$B$36+formule!$D$36*SQRT(A43)))/100,1)*100 -> 1900 | F43: 2261 | H43: 2125 | I43: 2571.25
A44: 4100 | B44: =(formule!$B$36+formule!$D$36*SQRT(A44)) -> 1714.173742 | C44: =CEILING((formule!$B$36+formule!$D$36*SQRT(A44))/100,1)*100 -> 1800 | D44: 2142 | E44: =CEILING(((1+formule!$E$40)*(formule!$B$36+formule!$D$36*SQRT(A44)))/100,1)*100 -> 1900 | F44: 2261 | H44: 2125 | I44: 2571.25
A45: 4200 | B45: =(formule!$B$36+formule!$D$36*SQRT(A45)) -> 1734.469837 | C45: =CEILING((formule!$B$36+formule!$D$36*SQRT(A45))/100,1)*100 -> 1800 | D45: 2142 | E45: =CEILING(((1+formule!$E$40)*(formule!$B$36+formule!$D$36*SQRT(A45)))/100,1)*100 -> 2000 | F45: 2380 | H45: 2225 | I45: 2692.25
A46: 4300 | B46: =(formule!$B$36+formule!$D$36*SQRT(A46)) -> 1754.525716 | C46: =CEILING((formule!$B$36+formule!$D$36*SQRT(A46))/100,1)*100 -> 1800 | D46: 2142 | E46: =CEILING(((1+formule!$E$40)*(formule!$B$36+formule!$D$36*SQRT(A46)))/100,1)*100 -> 2000 | F46: 2380 | H46: 2225 | I46: 2692.25
A47: 4400 | B47: =(formule!$B$36+formule!$D$36*SQRT(A47)) -> 1774.349712 | C47: =CEILING((formule!$B$36+formule!$D$36*SQRT(A47))/100,1)*100 -> 1800 | D47: 2142 | E47: =CEILING(((1+formule!$E$40)*(formule!$B$36+formule!$D$36*SQRT(A47)))/100,1)*100 -> 2000 | F47: 2380 | H47: 2225 | I47: 2692.25
A48: 4500 | B48: =(formule!$B$36+formule!$D$36*SQRT(A48)) -> 1793.949687 | C48: =CEILING((formule!$B$36+formule!$D$36*SQRT(A48))/100,1)*100 -> 1800 | D48: 2142 | E48: =CEILING(((1+formule!$E$40)*(formule!$B$36+formule!$D$36*SQRT(A48)))/100,1)*100 -> 2000 | F48: 2380 | H48: 2225 | I48: 2692.25
A49: 4600 | B49: =(formule!$B$36+formule!$D$36*SQRT(A49)) -> 1813.333067 | C49: =CEILING((formule!$B$36+formule!$D$36*SQRT(A49))/100,1)*100 -> 1900 | D49: 2261 | E49: =CEILING(((1+formule!$E$40)*(formule!$B$36+formule!$D$36*SQRT(A49)))/100,1)*100 -> 2000 | F49: 2380 | H49: 2225 | I49: 2692.25
A50: 4700 | B50: =(formule!$B$36+formule!$D$36*SQRT(A50)) -> 1832.506879 | C50: =CEILING((formule!$B$36+formule!$D$36*SQRT(A50))/100,1)*100 -> 1900 | D50: 2261 | E50: =CEILING(((1+formule!$E$40)*(formule!$B$36+formule!$D$36*SQRT(A50)))/100,1)*100 -> 2100 | F50: 2499 | H50: 2325 | I50: 2813.25
A51: 4800 | B51: =(formule!$B$36+formule!$D$36*SQRT(A51)) -> 1851.477776 | C51: =CEILING((formule!$B$36+formule!$D$36*SQRT(A51))/100,1)*100 -> 1900 | D51: 2261 | E51: =CEILING(((1+formule!$E$40)*(formule!$B$36+formule!$D$36*SQRT(A51)))/100,1)*100 -> 2100 | F51: 2499 | H51: 2325 | I51: 2813.25
A52: 4900 | B52: =(formule!$B$36+formule!$D$36*SQRT(A52)) -> 1870.252067 | C52: =CEILING((formule!$B$36+formule!$D$36*SQRT(A52))/100,1)*100 -> 1900 | D52: 2261 | E52: =CEILING(((1+formule!$E$40)*(formule!$B$36+formule!$D$36*SQRT(A52)))/100,1)*100 -> 2100 | F52: 2499 | H52: 2325 | I52: 2813.25
A53: 5000 | B53: =(formule!$B$36+formule!$D$36*SQRT(A53)) -> 1888.835742 | C53: =CEILING((formule!$B$36+formule!$D$36*SQRT(A53))/100,1)*100 -> 1900 | D53: 2261 | E53: =CEILING(((1+formule!$E$40)*(formule!$B$36+formule!$D$36*SQRT(A53)))/100,1)*100 -> 2100 | F53: 2499 | H53: 2325 | I53: 2813.25
A54: 5100 | B54: =(formule!$B$36+formule!$D$36*SQRT(A54)) -> 1907.234491 | C54: =CEILING((formule!$B$36+formule!$D$36*SQRT(A54))/100,1)*100 -> 2000 | D54: 2380 | E54: =CEILING(((1+formule!$E$40)*(formule!$B$36+formule!$D$36*SQRT(A54)))/100,1)*100 -> 2100 | F54: 2499 | H54: 2325 | I54: 2813.25
A55: 5200 | B55: =(formule!$B$36+formule!$D$36*SQRT(A55)) -> 1925.453727 | C55: =CEILING((formule!$B$36+formule!$D$36*SQRT(A55))/100,1)*100 -> 2000 | D55: 2380 | E55: =CEILING(((1+formule!$E$40)*(formule!$B$36+formule!$D$36*SQRT(A55)))/100,1)*100 -> 2200 | F55: 2618 | H55: 2425 | I55: 2934.25
A56: 5300 | B56: =(formule!$B$36+formule!$D$36*SQRT(A56)) -> 1943.498604 | C56: =CEILING((formule!$B$36+formule!$D$36*SQRT(A56))/100,1)*100 -> 2000 | D56: 2380 | E56: =CEILING(((1+formule!$E$40)*(formule!$B$36+formule!$D$36*SQRT(A56)))/100,1)*100 -> 2200 | F56: 2618 | H56: 2425 | I56: 2934.25
A57: 5400 | B57: =(formule!$B$36+formule!$D$36*SQRT(A57)) -> 1961.374035 | C57: =CEILING((formule!$B$36+formule!$D$36*SQRT(A57))/100,1)*100 -> 2000 | D57: 2380 | E57: =CEILING(((1+formule!$E$40)*(formule!$B$36+formule!$D$36*SQRT(A57)))/100,1)*100 -> 2200 | F57: 2618 | H57: 2425 | I57: 2934.25
A58: 5500 | B58: =(formule!$B$36+formule!$D$36*SQRT(A58)) -> 1979.084704 | C58: =CEILING((formule!$B$36+formule!$D$36*SQRT(A58))/100,1)*100 -> 2000 | D58: 2380 | E58: =CEILING(((1+formule!$E$40)*(formule!$B$36+formule!$D$36*SQRT(A58)))/100,1)*100 -> 2200 | F58: 2618 | H58: 2425 | I58: 2934.25
A59: 5600 | B59: =(formule!$B$36+formule!$D$36*SQRT(A59)) -> 1996.635086 | C59: =CEILING((formule!$B$36+formule!$D$36*SQRT(A59))/100,1)*100 -> 2000 | D59: 2380 | E59: =CEILING(((1+formule!$E$40)*(formule!$B$36+formule!$D$36*SQRT(A59)))/100,1)*100 -> 2200 | F59: 2618 | H59: 2425 | I59: 2934.25
A60: 5700 | B60: =(formule!$B$36+formule!$D$36*SQRT(A60)) -> 2014.029455 | C60: =CEILING((formule!$B$36+formule!$D$36*SQRT(A60))/100,1)*100 -> 2100 | D60: 2499 | E60: =CEILING(((1+formule!$E$40)*(formule!$B$36+formule!$D$36*SQRT(A60)))/100,1)*100 -> 2300 | F60: 2737 | H60: 2525 | I60: 3055.25
A61: 5800 | B61: =(formule!$B$36+formule!$D$36*SQRT(A61)) -> 2031.2719 | C61: =CEILING((formule!$B$36+formule!$D$36*SQRT(A61))/100,1)*100 -> 2100 | D61: 2499 | E61: =CEILING(((1+formule!$E$40)*(formule!$B$36+formule!$D$36*SQRT(A61)))/100,1)*100 -> 2300 | F61: 2737 | H61: 2525 | I61: 3055.25
A62: 5900 | B62: =(formule!$B$36+formule!$D$36*SQRT(A62)) -> 2048.366333 | C62: =CEILING((formule!$B$36+formule!$D$36*SQRT(A62))/100,1)*100 -> 2100 | D62: 2499 | E62: =CEILING(((1+formule!$E$40)*(formule!$B$36+formule!$D$36*SQRT(A62)))/100,1)*100 -> 2300 | F62: 2737 | H62: 2525 | I62: 3055.25
A63: 6000 | B63: =(formule!$B$36+formule!$D$36*SQRT(A63)) -> 2065.316501 | C63: =CEILING((formule!$B$36+formule!$D$36*SQRT(A63))/100,1)*100 -> 2100 | D63: 2499 | E63: =CEILING(((1+formule!$E$40)*(formule!$B$36+formule!$D$36*SQRT(A63)))/100,1)*100 -> 2300 | F63: 2737 | H63: 2525 | I63: 3055.25
A64: 6100 | B64: =(formule!$B$36+formule!$D$36*SQRT(A64)) -> 2082.125996 | C64: =CEILING((formule!$B$36+formule!$D$36*SQRT(A64))/100,1)*100 -> 2100 | D64: 2499 | E64: =CEILING(((1+formule!$E$40)*(formule!$B$36+formule!$D$36*SQRT(A64)))/100,1)*100 -> 2300 | F64: 2737 | H64: 2525 | I64: 3055.25
A65: 6200 | B65: =(formule!$B$36+formule!$D$36*SQRT(A65)) -> 2098.798265 | C65: =CEILING((formule!$B$36+formule!$D$36*SQRT(A65))/100,1)*100 -> 2100 | D65: 2499 | E65: =CEILING(((1+formule!$E$40)*(formule!$B$36+formule!$D$36*SQRT(A65)))/100,1)*100 -> 2400 | F65: 2856 | H65: 2625 | I65: 3176.25
A66: 6300 | B66: =(formule!$B$36+formule!$D$36*SQRT(A66)) -> 2115.336612 | C66: =CEILING((formule!$B$36+formule!$D$36*SQRT(A66))/100,1)*100 -> 2200 | D66: 2618 | E66: =CEILING(((1+formule!$E$40)*(formule!$B$36+formule!$D$36*SQRT(A66)))/100,1)*100 -> 2400 | F66: 2856 | H66: 2625 | I66: 3176.25
A67: 6400 | B67: =(formule!$B$36+formule!$D$36*SQRT(A67)) -> 2131.744216 | C67: =CEILING((formule!$B$36+formule!$D$36*SQRT(A67))/100,1)*100 -> 2200 | D67: 2618 | E67: =CEILING(((1+formule!$E$40)*(formule!$B$36+formule!$D$36*SQRT(A67)))/100,1)*100 -> 2400 | F67: 2856 | H67: 2625 | I67: 3176.25
A68: 6500 | B68: =(formule!$B$36+formule!$D$36*SQRT(A68)) -> 2148.024129 | C68: =CEILING((formule!$B$36+formule!$D$36*SQRT(A68))/100,1)*100 -> 2200 | D68: 2618 | E68: =CEILING(((1+formule!$E$40)*(formule!$B$36+formule!$D$36*SQRT(A68)))/100,1)*100 -> 2400 | F68: =E68*1.19 -> 2856 | H68: 2625 | I68: 3176.25
A69: 6600 | B69: =(formule!$B$36+formule!$D$36*SQRT(A69)) -> 2164.179285 | C69: =CEILING((formule!$B$36+formule!$D$36*SQRT(A69))/100,1)*100 -> 2200 | D69: 2618 | E69: =CEILING(((1+formule!$E$40)*(formule!$B$36+formule!$D$36*SQRT(A69)))/100,1)*100 -> 2400 | F69: 2856 | H69: 2625 | I69: =H69*1.21 -> 3176.25
A70: 6700 | B70: =(formule!$B$36+formule!$D$36*SQRT(A70)) -> 2180.212511 | C70: =CEILING((formule!$B$36+formule!$D$36*SQRT(A70))/100,1)*100 -> 2200 | D70: 2618 | E70: =CEILING(((1+formule!$E$40)*(formule!$B$36+formule!$D$36*SQRT(A70)))/100,1)*100 -> 2400 | F70: 2856 | H70: 2625 | I70: 3176.25
A71: 6800 | B71: =(formule!$B$36+formule!$D$36*SQRT(A71)) -> 2196.126525 | C71: =CEILING((formule!$B$36+formule!$D$36*SQRT(A71))/100,1)*100 -> 2200 | D71: 2618 | E71: =CEILING(((1+formule!$E$40)*(formule!$B$36+formule!$D$36*SQRT(A71)))/100,1)*100 -> 2500 | F71: 2975 | H71: 2725 | I71: 3297.25
A72: 6900 | B72: =(formule!$B$36+formule!$D$36*SQRT(A72)) -> 2211.923949 | C72: =CEILING((formule!$B$36+formule!$D$36*SQRT(A72))/100,1)*100 -> 2300 | D72: 2737 | E72: =CEILING(((1+formule!$E$40)*(formule!$B$36+formule!$D$36*SQRT(A72)))/100,1)*100 -> 2500 | F72: 2975 | H72: 2725 | I72: 3297.25
A73: 7000 | B73: =(formule!$B$36+formule!$D$36*SQRT(A73)) -> 2227.607307 | C73: =CEILING((formule!$B$36+formule!$D$36*SQRT(A73))/100,1)*100 -> 2300 | D73: =C73*1.19 -> 2737 | E73: =CEILING(((1+formule!$E$40)*(formule!$B$36+formule!$D$36*SQRT(A73)))/100,1)*100 -> 2500 | F73: 2975 | H73: 2725 | I73: 3297.25
A74: =A73+100 -> 7100 | B74: =(formule!$B$36+formule!$D$36*SQRT(A74)) -> 2243.179036 | C74: =CEILING((formule!$B$36+formule!$D$36*SQRT(A74))/100,1)*100 -> 2300 | D74: 2737 | E74: =CEILING(((1+formule!$E$40)*(formule!$B$36+formule!$D$36*SQRT(A74)))/100,1)*100 -> 2500 | F74: 2975 | H74: 2725 | I74: 3297.25
A75: 7200 | B75: =(formule!$B$36+formule!$D$36*SQRT(A75)) -> 2258.641486 | C75: =CEILING((formule!$B$36+formule!$D$36*SQRT(A75))/100,1)*100 -> 2300 | D75: 2737 | E75: =CEILING(((1+formule!$E$40)*(formule!$B$36+formule!$D$36*SQRT(A75)))/100,1)*100 -> 2500 | F75: 2975 | H75: 2725 | I75: 3297.25
A76: 7300 | B76: =(formule!$B$36+formule!$D$36*SQRT(A76)) -> 2273.996925 | C76: =CEILING((formule!$B$36+formule!$D$36*SQRT(A76))/100,1)*100 -> 2300 | D76: 2737 | E76: =CEILING(((1+formule!$E$40)*(formule!$B$36+formule!$D$36*SQRT(A76)))/100,1)*100 -> 2600 | F76: 3094 | H76: 2825 | I76: 3418.25
A77: 7400 | B77: =(formule!$B$36+formule!$D$36*SQRT(A77)) -> 2289.247545 | C77: =CEILING((formule!$B$36+formule!$D$36*SQRT(A77))/100,1)*100 -> 2300 | D77: 2737 | E77: =CEILING(((1+formule!$E$40)*(formule!$B$36+formule!$D$36*SQRT(A77)))/100,1)*100 -> 2600 | F77: 3094 | H77: 2825 | I77: 3418.25
A78: 7500 | B78: =(formule!$B$36+formule!$D$36*SQRT(A78)) -> 2304.395464 | C78: =CEILING((formule!$B$36+formule!$D$36*SQRT(A78))/100,1)*100 -> 2400 | D78: 2856 | E78: =CEILING(((1+formule!$E$40)*(formule!$B$36+formule!$D$36*SQRT(A78)))/100,1)*100 -> 2600 | F78: 3094 | H78: 2825 | I78: 3418.25
A79: 7600 | B79: =(formule!$B$36+formule!$D$36*SQRT(A79)) -> 2319.442728 | C79: =CEILING((formule!$B$36+formule!$D$36*SQRT(A79))/100,1)*100 -> 2400 | D79: 2856 | E79: =CEILING(((1+formule!$E$40)*(formule!$B$36+formule!$D$36*SQRT(A79)))/100,1)*100 -> 2600 | F79: 3094 | H79: 2825 | I79: 3418.25
A80: 7700 | B80: =(formule!$B$36+formule!$D$36*SQRT(A80)) -> 2334.391319 | C80: =CEILING((formule!$B$36+formule!$D$36*SQRT(A80))/100,1)*100 -> 2400 | D80: 2856 | E80: =CEILING(((1+formule!$E$40)*(formule!$B$36+formule!$D$36*SQRT(A80)))/100,1)*100 -> 2600 | F80: 3094 | H80: 2825 | I80: 3418.25
A81: 7800 | B81: =(formule!$B$36+formule!$D$36*SQRT(A81)) -> 2349.243153 | C81: =CEILING((formule!$B$36+formule!$D$36*SQRT(A81))/100,1)*100 -> 2400 | D81: 2856 | E81: =CEILING(((1+formule!$E$40)*(formule!$B$36+formule!$D$36*SQRT(A81)))/100,1)*100 -> 2600 | F81: 3094 | H81: 2825 | I81: 3418.25
A82: 7900 | B82: =(formule!$B$36+formule!$D$36*SQRT(A82)) -> 2364.000083 | C82: =CEILING((formule!$B$36+formule!$D$36*SQRT(A82))/100,1)*100 -> 2400 | D82: 2856 | E82: =CEILING(((1+formule!$E$40)*(formule!$B$36+formule!$D$36*SQRT(A82)))/100,1)*100 -> 2700 | F82: 3213 | H82: 2925 | I82: 3539.25
A83: 8000 | B83: =(formule!$B$36+formule!$D$36*SQRT(A83)) -> 2378.663907 | C83: =CEILING((formule!$B$36+formule!$D$36*SQRT(A83))/100,1)*100 -> 2400 | D83: 2856 | E83: =CEILING(((1+formule!$E$40)*(formule!$B$36+formule!$D$36*SQRT(A83)))/100,1)*100 -> 2700 | F83: 3213 | H83: 2925 | I83: 3539.25
A84: 8100 | B84: =(formule!$B$36+formule!$D$36*SQRT(A84)) -> 2393.236365 | C84: =CEILING((formule!$B$36+formule!$D$36*SQRT(A84))/100,1)*100 -> 2400 | D84: 2856 | E84: =CEILING(((1+formule!$E$40)*(formule!$B$36+formule!$D$36*SQRT(A84)))/100,1)*100 -> 2700 | F84: 3213 | H84: 2925 | I84: 3539.25
A85: 8200 | B85: =(formule!$B$36+formule!$D$36*SQRT(A85)) -> 2407.719144 | C85: =CEILING((formule!$B$36+formule!$D$36*SQRT(A85))/100,1)*100 -> 2500 | D85: 2975 | E85: =CEILING(((1+formule!$E$40)*(formule!$B$36+formule!$D$36*SQRT(A85)))/100,1)*100 -> 2700 | F85: 3213 | H85: 2925 | I85: 3539.25
A86: 8300 | B86: =(formule!$B$36+formule!$D$36*SQRT(A86)) -> 2422.113879 | C86: =CEILING((formule!$B$36+formule!$D$36*SQRT(A86))/100,1)*100 -> 2500 | D86: 2975 | E86: =CEILING(((1+formule!$E$40)*(formule!$B$36+formule!$D$36*SQRT(A86)))/100,1)*100 -> 2700 | F86: 3213 | H86: 2925 | I86: 3539.25
A87: 8400 | B87: =(formule!$B$36+formule!$D$36*SQRT(A87)) -> 2436.422157 | C87: =CEILING((formule!$B$36+formule!$D$36*SQRT(A87))/100,1)*100 -> 2500 | D87: 2975 | E87: =CEILING(((1+formule!$E$40)*(formule!$B$36+formule!$D$36*SQRT(A87)))/100,1)*100 -> 2700 | F87: 3213 | H87: 2925 | I87: 3539.25
A88: 8500 | B88: =(formule!$B$36+formule!$D$36*SQRT(A88)) -> 2450.645517 | C88: =CEILING((formule!$B$36+formule!$D$36*SQRT(A88))/100,1)*100 -> 2500 | D88: 2975 | E88: =CEILING(((1+formule!$E$40)*(formule!$B$36+formule!$D$36*SQRT(A88)))/100,1)*100 -> 2700 | F88: 3213 | H88: 2925 | I88: 3539.25
A89: 8600 | B89: =(formule!$B$36+formule!$D$36*SQRT(A89)) -> 2464.785454 | C89: =CEILING((formule!$B$36+formule!$D$36*SQRT(A89))/100,1)*100 -> 2500 | D89: 2975 | E89: =CEILING(((1+formule!$E$40)*(formule!$B$36+formule!$D$36*SQRT(A89)))/100,1)*100 -> 2800 | F89: 3332 | H89: 3025 | I89: 3660.25
A90: 8700 | B90: =(formule!$B$36+formule!$D$36*SQRT(A90)) -> 2478.843417 | C90: =CEILING((formule!$B$36+formule!$D$36*SQRT(A90))/100,1)*100 -> 2500 | D90: 2975 | E90: =CEILING(((1+formule!$E$40)*(formule!$B$36+formule!$D$36*SQRT(A90)))/100,1)*100 -> 2800 | F90: 3332 | H90: 3025 | I90: 3660.25
A91: 8800 | B91: =(formule!$B$36+formule!$D$36*SQRT(A91)) -> 2492.820818 | C91: =CEILING((formule!$B$36+formule!$D$36*SQRT(A91))/100,1)*100 -> 2500 | D91: 2975 | E91: =CEILING(((1+formule!$E$40)*(formule!$B$36+formule!$D$36*SQRT(A91)))/100,1)*100 -> 2800 | F91: 3332 | H91: 3025 | I91: 3660.25
A92: 8900 | B92: =(formule!$B$36+formule!$D$36*SQRT(A92)) -> 2506.719024 | C92: =CEILING((formule!$B$36+formule!$D$36*SQRT(A92))/100,1)*100 -> 2600 | D92: 3094 | E92: =CEILING(((1+formule!$E$40)*(formule!$B$36+formule!$D$36*SQRT(A92)))/100,1)*100 -> 2800 | F92: 3332 | H92: 3025 | I92: 3660.25
A93: 9000 | B93: =(formule!$B$36+formule!$D$36*SQRT(A93)) -> 2520.539368 | C93: =CEILING((formule!$B$36+formule!$D$36*SQRT(A93))/100,1)*100 -> 2600 | D93: 3094 | E93: =CEILING(((1+formule!$E$40)*(formule!$B$36+formule!$D$36*SQRT(A93)))/100,1)*100 -> 2800 | F93: 3332 | H93: 3025 | I93: 3660.25
A94: 9100 | B94: =(formule!$B$36+formule!$D$36*SQRT(A94)) -> 2534.283142 | C94: =CEILING((formule!$B$36+formule!$D$36*SQRT(A94))/100,1)*100 -> 2600 | D94: 3094 | E94: =CEILING(((1+formule!$E$40)*(formule!$B$36+formule!$D$36*SQRT(A94)))/100,1)*100 -> 2800 | F94: 3332 | H94: 3025 | I94: 3660.25
A95: 9200 | B95: =(formule!$B$36+formule!$D$36*SQRT(A95)) -> 2547.951607 | C95: =CEILING((formule!$B$36+formule!$D$36*SQRT(A95))/100,1)*100 -> 2600 | D95: 3094 | E95: =CEILING(((1+formule!$E$40)*(formule!$B$36+formule!$D$36*SQRT(A95)))/100,1)*100 -> 2900 | F95: 3451 | H95: 3125 | I95: 3781.25
A96: 9300 | B96: =(formule!$B$36+formule!$D$36*SQRT(A96)) -> 2561.545986 | C96: =CEILING((formule!$B$36+formule!$D$36*SQRT(A96))/100,1)*100 -> 2600 | D96: 3094 | E96: =CEILING(((1+formule!$E$40)*(formule!$B$36+formule!$D$36*SQRT(A96)))/100,1)*100 -> 2900 | F96: 3451 | H96: 3125 | I96: 3781.25
A97: 9400 | B97: =(formule!$B$36+formule!$D$36*SQRT(A97)) -> 2575.067471 | C97: =CEILING((formule!$B$36+formule!$D$36*SQRT(A97))/100,1)*100 -> 2600 | D97: 3094 | E97: =CEILING(((1+formule!$E$40)*(formule!$B$36+formule!$D$36*SQRT(A97)))/100,1)*100 -> 2900 | F97: 3451 | H97: 3125 | I97: 3781.25
A98: 9500 | B98: =(formule!$B$36+formule!$D$36*SQRT(A98)) -> 2588.517223 | C98: =CEILING((formule!$B$36+formule!$D$36*SQRT(A98))/100,1)*100 -> 2600 | D98: 3094 | E98: =CEILING(((1+formule!$E$40)*(formule!$B$36+formule!$D$36*SQRT(A98)))/100,1)*100 -> 2900 | F98: 3451 | H98: 3125 | I98: 3781.25
A99: 9600 | B99: =(formule!$B$36+formule!$D$36*SQRT(A99)) -> 2601.896371 | C99: =CEILING((formule!$B$36+formule!$D$36*SQRT(A99))/100,1)*100 -> 2700 | D99: 3213 | E99: =CEILING(((1+formule!$E$40)*(formule!$B$36+formule!$D$36*SQRT(A99)))/100,1)*100 -> 2900 | F99: 3451 | H99: =E99+225 -> 3125 | I99: 3781.25
A100: 9700 | B100: =(formule!$B$36+formule!$D$36*SQRT(A100)) -> 2615.206016 | C100: =CEILING((formule!$B$36+formule!$D$36*SQRT(A100))/100,1)*100 -> 2700 | D100: 3213 | E100: =CEILING(((1+formule!$E$40)*(formule!$B$36+formule!$D$36*SQRT(A100)))/100,1)*100 -> 2900 | F100: 3451 | H100: 3125 | I100: 3781.25
A101: 9800 | B101: =(formule!$B$36+formule!$D$36*SQRT(A101)) -> 2628.447229 | C101: =CEILING((formule!$B$36+formule!$D$36*SQRT(A101))/100,1)*100 -> 2700 | D101: 3213 | E101: =CEILING(((1+formule!$E$40)*(formule!$B$36+formule!$D$36*SQRT(A101)))/100,1)*100 -> 2900 | F101: 3451 | H101: 3125 | I101: 3781.25
A102: 9900 | B102: =(formule!$B$36+formule!$D$36*SQRT(A102)) -> 2641.621056 | C102: =CEILING((formule!$B$36+formule!$D$36*SQRT(A102))/100,1)*100 -> 2700 | D102: 3213 | E102: =CEILING(((1+formule!$E$40)*(formule!$B$36+formule!$D$36*SQRT(A102)))/100,1)*100 -> 3000 | F102: 3570 | H102: 3225 | I102: 3902.25
A103: 10000 | B103: =(formule!$B$36+formule!$D$36*SQRT(A103)) -> 2654.728514 | C103: =CEILING((formule!$B$36+formule!$D$36*SQRT(A103))/100,1)*100 -> 2700 | D103: 3213 | E103: =CEILING(((1+formule!$E$40)*(formule!$B$36+formule!$D$36*SQRT(A103)))/100,1)*100 -> 3000 | F103: 3570 | H103: 3225 | I103: 3902.25
A104: 10100 | B104: =(formule!$B$36+formule!$D$36*SQRT(A104)) -> 2667.770598 | C104: =CEILING((formule!$B$36+formule!$D$36*SQRT(A104))/100,1)*100 -> 2700 | D104: 3213 | E104: =CEILING(((1+formule!$E$40)*(formule!$B$36+formule!$D$36*SQRT(A104)))/100,1)*100 -> 3000 | F104: 3570 | H104: 3225 | I104: 3902.25
A105: 10200 | B105: =(formule!$B$36+formule!$D$36*SQRT(A105)) -> 2680.748274 | C105: =CEILING((formule!$B$36+formule!$D$36*SQRT(A105))/100,1)*100 -> 2700 | D105: 3213 | E105: =CEILING(((1+formule!$E$40)*(formule!$B$36+formule!$D$36*SQRT(A105)))/100,1)*100 -> 3000 | F105: 3570 | H105: 3225 | I105: 3902.25
A106: 10300 | B106: =(formule!$B$36+formule!$D$36*SQRT(A106)) -> 2693.66249 | C106: =CEILING((formule!$B$36+formule!$D$36*SQRT(A106))/100,1)*100 -> 2700 | D106: 3213 | E106: =CEILING(((1+formule!$E$40)*(formule!$B$36+formule!$D$36*SQRT(A106)))/100,1)*100 -> 3000 | F106: 3570 | H106: 3225 | I106: 3902.25
A107: 10400 | B107: =(formule!$B$36+formule!$D$36*SQRT(A107)) -> 2706.514165 | C107: =CEILING((formule!$B$36+formule!$D$36*SQRT(A107))/100,1)*100 -> 2800 | D107: 3332 | E107: =CEILING(((1+formule!$E$40)*(formule!$B$36+formule!$D$36*SQRT(A107)))/100,1)*100 -> 3000 | F107: 3570 | H107: 3225 | I107: 3902.25
A108: 10500 | B108: =(formule!$B$36+formule!$D$36*SQRT(A108)) -> 2719.304201 | C108: =CEILING((formule!$B$36+formule!$D$36*SQRT(A108))/100,1)*100 -> 2800 | D108: 3332 | E108: =CEILING(((1+formule!$E$40)*(formule!$B$36+formule!$D$36*SQRT(A108)))/100,1)*100 -> 3000 | F108: 3570 | H108: 3225 | I108: 3902.25
A109: 10600 | B109: =(formule!$B$36+formule!$D$36*SQRT(A109)) -> 2732.033475 | C109: =CEILING((formule!$B$36+formule!$D$36*SQRT(A109))/100,1)*100 -> 2800 | D109: 3332 | E109: =CEILING(((1+formule!$E$40)*(formule!$B$36+formule!$D$36*SQRT(A109)))/100,1)*100 -> 3100 | F109: 3689 | H109: 3325 | I109: 4023.25
A110: 10700 | B110: =(formule!$B$36+formule!$D$36*SQRT(A110)) -> 2744.702846 | C110: =CEILING((formule!$B$36+formule!$D$36*SQRT(A110))/100,1)*100 -> 2800 | D110: 3332 | E110: =CEILING(((1+formule!$E$40)*(formule!$B$36+formule!$D$36*SQRT(A110)))/100,1)*100 -> 3100 | F110: 3689 | H110: 3325 | I110: 4023.25
A111: 10800 | B111: =(formule!$B$36+formule!$D$36*SQRT(A111)) -> 2757.313151 | C111: =CEILING((formule!$B$36+formule!$D$36*SQRT(A111))/100,1)*100 -> 2800 | D111: 3332 | E111: =CEILING(((1+formule!$E$40)*(formule!$B$36+formule!$D$36*SQRT(A111)))/100,1)*100 -> 3100 | F111: 3689 | H111: 3325 | I111: 4023.25
A112: 10900 | B112: =(formule!$B$36+formule!$D$36*SQRT(A112)) -> 2769.865209 | C112: =CEILING((formule!$B$36+formule!$D$36*SQRT(A112))/100,1)*100 -> 2800 | D112: 3332 | E112: =CEILING(((1+formule!$E$40)*(formule!$B$36+formule!$D$36*SQRT(A112)))/100,1)*100 -> 3100 | F112: 3689 | H112: 3325 | I112: 4023.25
A113: 11000 | B113: =(formule!$B$36+formule!$D$36*SQRT(A113)) -> 2782.35982 | C113: =CEILING((formule!$B$36+formule!$D$36*SQRT(A113))/100,1)*100 -> 2800 | D113: 3332 | E113: =CEILING(((1+formule!$E$40)*(formule!$B$36+formule!$D$36*SQRT(A113)))/100,1)*100 -> 3100 | F113: 3689 | H113: 3325 | I113: 4023.25
A114: 11100 | B114: =(formule!$B$36+formule!$D$36*SQRT(A114)) -> 2794.797765 | C114: =CEILING((formule!$B$36+formule!$D$36*SQRT(A114))/100,1)*100 -> 2800 | D114: 3332 | E114: =CEILING(((1+formule!$E$40)*(formule!$B$36+formule!$D$36*SQRT(A114)))/100,1)*100 -> 3100 | F114: 3689 | H114: 3325 | I114: 4023.25
A115: 11200 | B115: =(formule!$B$36+formule!$D$36*SQRT(A115)) -> 2807.179808 | C115: =CEILING((formule!$B$36+formule!$D$36*SQRT(A115))/100,1)*100 -> 2900 | D115: 3451 | E115: =CEILING(((1+formule!$E$40)*(formule!$B$36+formule!$D$36*SQRT(A115)))/100,1)*100 -> 3100 | F115: 3689 | H115: 3325 | I115: 4023.25
A116: 11300 | B116: =(formule!$B$36+formule!$D$36*SQRT(A116)) -> 2819.506697 | C116: =CEILING((formule!$B$36+formule!$D$36*SQRT(A116))/100,1)*100 -> 2900 | D116: 3451 | E116: =CEILING(((1+formule!$E$40)*(formule!$B$36+formule!$D$36*SQRT(A116)))/100,1)*100 -> 3200 | F116: 3808 | H116: 3425 | I116: 4144.25
A117: 11400 | B117: =(formule!$B$36+formule!$D$36*SQRT(A117)) -> 2831.779161 | C117: =CEILING((formule!$B$36+formule!$D$36*SQRT(A117))/100,1)*100 -> 2900 | D117: 3451 | E117: =CEILING(((1+formule!$E$40)*(formule!$B$36+formule!$D$36*SQRT(A117)))/100,1)*100 -> 3200 | F117: 3808 | H117: 3425 | I117: 4144.25
A118: 11500 | B118: =(formule!$B$36+formule!$D$36*SQRT(A118)) -> 2843.997916 | C118: =CEILING((formule!$B$36+formule!$D$36*SQRT(A118))/100,1)*100 -> 2900 | D118: 3451 | E118: =CEILING(((1+formule!$E$40)*(formule!$B$36+formule!$D$36*SQRT(A118)))/100,1)*100 -> 3200 | F118: 3808 | H118: 3425 | I118: 4144.25
A119: 11600 | B119: =(formule!$B$36+formule!$D$36*SQRT(A119)) -> 2856.16366 | C119: =CEILING((formule!$B$36+formule!$D$36*SQRT(A119))/100,1)*100 -> 2900 | D119: 3451 | E119: =CEILING(((1+formule!$E$40)*(formule!$B$36+formule!$D$36*SQRT(A119)))/100,1)*100 -> 3200 | F119: 3808 | H119: 3425 | I119: 4144.25
A120: 11700 | B120: =(formule!$B$36+formule!$D$36*SQRT(A120)) -> 2868.277078 | C120: =CEILING((formule!$B$36+formule!$D$36*SQRT(A120))/100,1)*100 -> 2900 | D120: 3451 | E120: =CEILING(((1+formule!$E$40)*(formule!$B$36+formule!$D$36*SQRT(A120)))/100,1)*100 -> 3200 | F120: 3808 | H120: 3425 | I120: 4144.25
A121: 11800 | B121: =(formule!$B$36+formule!$D$36*SQRT(A121)) -> 2880.338839 | C121: =CEILING((formule!$B$36+formule!$D$36*SQRT(A121))/100,1)*100 -> 2900 | D121: 3451 | E121: =CEILING(((1+formule!$E$40)*(formule!$B$36+formule!$D$36*SQRT(A121)))/100,1)*100 -> 3200 | F121: 3808 | H121: 3425 | I121: 4144.25
A122: 11900 | B122: =(formule!$B$36+formule!$D$36*SQRT(A122)) -> 2892.349598 | C122: =CEILING((formule!$B$36+formule!$D$36*SQRT(A122))/100,1)*100 -> 2900 | D122: 3451 | E122: =CEILING(((1+formule!$E$40)*(formule!$B$36+formule!$D$36*SQRT(A122)))/100,1)*100 -> 3200 | F122: 3808 | H122: 3425 | I122: 4144.25
A123: 12000 | B123: =(formule!$B$36+formule!$D$36*SQRT(A123)) -> 2904.309997 | C123: =CEILING((formule!$B$36+formule!$D$36*SQRT(A123))/100,1)*100 -> 3000 | D123: 3570 | E123: =CEILING(((1+formule!$E$40)*(formule!$B$36+formule!$D$36*SQRT(A123)))/100,1)*100 -> 3200 | F123: 3808 | H123: 3425 | I123: 4144.25
A124: 12100 | B124: =(formule!$B$36+formule!$D$36*SQRT(A124)) -> 2916.220663 | C124: =CEILING((formule!$B$36+formule!$D$36*SQRT(A124))/100,1)*100 -> 3000 | D124: 3570 | E124: =CEILING(((1+formule!$E$40)*(formule!$B$36+formule!$D$36*SQRT(A124)))/100,1)*100 -> 3300 | F124: 3927 | H124: 3525 | I124: 4265.25
A125: 12200 | B125: =(formule!$B$36+formule!$D$36*SQRT(A125)) -> 2928.082213 | C125: =CEILING((formule!$B$36+formule!$D$36*SQRT(A125))/100,1)*100 -> 3000 | D125: 3570 | E125: =CEILING(((1+formule!$E$40)*(formule!$B$36+formule!$D$36*SQRT(A125)))/100,1)*100 -> 3300 | F125: 3927 | H125: 3525 | I125: 4265.25
A126: 12300 | B126: =(formule!$B$36+formule!$D$36*SQRT(A126)) -> 2939.895249 | C126: =CEILING((formule!$B$36+formule!$D$36*SQRT(A126))/100,1)*100 -> 3000 | D126: 3570 | E126: =CEILING(((1+formule!$E$40)*(formule!$B$36+formule!$D$36*SQRT(A126)))/100,1)*100 -> 3300 | F126: 3927 | H126: 3525 | I126: 4265.25
A127: 12400 | B127: =(formule!$B$36+formule!$D$36*SQRT(A127)) -> 2951.660361 | C127: =CEILING((formule!$B$36+formule!$D$36*SQRT(A127))/100,1)*100 -> 3000 | D127: 3570 | E127: =CEILING(((1+formule!$E$40)*(formule!$B$36+formule!$D$36*SQRT(A127)))/100,1)*100 -> 3300 | F127: 3927 | H127: 3525 | I127: 4265.25
A128: 12500 | B128: =(formule!$B$36+formule!$D$36*SQRT(A128)) -> 2963.378128 | C128: =CEILING((formule!$B$36+formule!$D$36*SQRT(A128))/100,1)*100 -> 3000 | D128: 3570 | E128: =CEILING(((1+formule!$E$40)*(formule!$B$36+formule!$D$36*SQRT(A128)))/100,1)*100 -> 3300 | F128: 3927 | H128: 3525 | I128: 4265.25
A129: 12600 | B129: =(formule!$B$36+formule!$D$36*SQRT(A129)) -> 2975.049117 | C129: =CEILING((formule!$B$36+formule!$D$36*SQRT(A129))/100,1)*100 -> 3000 | D129: 3570 | E129: =CEILING(((1+formule!$E$40)*(formule!$B$36+formule!$D$36*SQRT(A129)))/100,1)*100 -> 3300 | F129: 3927 | H129: 3525 | I129: 4265.25
A130: 12700 | B130: =(formule!$B$36+formule!$D$36*SQRT(A130)) -> 2986.673884 | C130: =CEILING((formule!$B$36+formule!$D$36*SQRT(A130))/100,1)*100 -> 3000 | D130: 3570 | E130: =CEILING(((1+formule!$E$40)*(formule!$B$36+formule!$D$36*SQRT(A130)))/100,1)*100 -> 3300 | F130: 3927 | H130: 3525 | I130: 4265.25
A131: 12800 | B131: =(formule!$B$36+formule!$D$36*SQRT(A131)) -> 2998.252973 | C131: =CEILING((formule!$B$36+formule!$D$36*SQRT(A131))/100,1)*100 -> 3000 | D131: 3570 | E131: =CEILING(((1+formule!$E$40)*(formule!$B$36+formule!$D$36*SQRT(A131)))/100,1)*100 -> 3300 | F131: 3927 | H131: 3525 | I131: 4265.25
A132: 12900 | B132: =(formule!$B$36+formule!$D$36*SQRT(A132)) -> 3009.786919 | C132: =CEILING((formule!$B$36+formule!$D$36*SQRT(A132))/100,1)*100 -> 3100 | D132: 3689 | E132: =CEILING(((1+formule!$E$40)*(formule!$B$36+formule!$D$36*SQRT(A132)))/100,1)*100 -> 3400 | F132: =E132*1.19 -> 4046 | H132: 3625 | I132: 4386.25
A133: 13000 | B133: =(formule!$B$36+formule!$D$36*SQRT(A133)) -> 3021.276246 | C133: =CEILING((formule!$B$36+formule!$D$36*SQRT(A133))/100,1)*100 -> 3100 | D133: 3689 | E133: =CEILING(((1+formule!$E$40)*(formule!$B$36+formule!$D$36*SQRT(A133)))/100,1)*100 -> 3400 | F133: 4046 | H133: 3625 | I133: =H133*1.21 -> 4386.25
A134: 13100 | B134: =(formule!$B$36+formule!$D$36*SQRT(A134)) -> 3032.721467 | C134: =CEILING((formule!$B$36+formule!$D$36*SQRT(A134))/100,1)*100 -> 3100 | D134: 3689 | E134: =CEILING(((1+formule!$E$40)*(formule!$B$36+formule!$D$36*SQRT(A134)))/100,1)*100 -> 3400 | F134: 4046 | H134: 3625 | I134: 4386.25
A135: 13200 | B135: =(formule!$B$36+formule!$D$36*SQRT(A135)) -> 3044.123087 | C135: =CEILING((formule!$B$36+formule!$D$36*SQRT(A135))/100,1)*100 -> 3100 | D135: 3689 | E135: =CEILING(((1+formule!$E$40)*(formule!$B$36+formule!$D$36*SQRT(A135)))/100,1)*100 -> 3400 | F135: 4046 | H135: 3625 | I135: 4386.25
A136: 13300 | B136: =(formule!$B$36+formule!$D$36*SQRT(A136)) -> 3055.481601 | C136: =CEILING((formule!$B$36+formule!$D$36*SQRT(A136))/100,1)*100 -> 3100 | D136: 3689 | E136: =CEILING(((1+formule!$E$40)*(formule!$B$36+formule!$D$36*SQRT(A136)))/100,1)*100 -> 3400 | F136: 4046 | H136: 3625 | I136: 4386.25
A137: 13400 | B137: =(formule!$B$36+formule!$D$36*SQRT(A137)) -> 3066.797492 | C137: =CEILING((formule!$B$36+formule!$D$36*SQRT(A137))/100,1)*100 -> 3100 | D137: =C137*1.19 -> 3689 | E137: =CEILING(((1+formule!$E$40)*(formule!$B$36+formule!$D$36*SQRT(A137)))/100,1)*100 -> 3400 | F137: 4046 | H137: 3625 | I137: 4386.25
A138: =A137+100 -> 13500 | B138: =(formule!$B$36+formule!$D$36*SQRT(A138)) -> 3078.071239 | C138: =CEILING((formule!$B$36+formule!$D$36*SQRT(A138))/100,1)*100 -> 3100 | D138: 3689 | E138: =CEILING(((1+formule!$E$40)*(formule!$B$36+formule!$D$36*SQRT(A138)))/100,1)*100 -> 3400 | F138: 4046 | H138: 3625 | I138: 4386.25
A139: 13600 | B139: =(formule!$B$36+formule!$D$36*SQRT(A139)) -> 3089.303308 | C139: =CEILING((formule!$B$36+formule!$D$36*SQRT(A139))/100,1)*100 -> 3100 | D139: 3689 | E139: =CEILING(((1+formule!$E$40)*(formule!$B$36+formule!$D$36*SQRT(A139)))/100,1)*100 -> 3400 | F139: 4046 | H139: 3625 | I139: 4386.25
A140: 13700 | B140: =(formule!$B$36+formule!$D$36*SQRT(A140)) -> 3100.494157 | C140: =CEILING((formule!$B$36+formule!$D$36*SQRT(A140))/100,1)*100 -> 3200 | D140: 3808 | E140: =CEILING(((1+formule!$E$40)*(formule!$B$36+formule!$D$36*SQRT(A140)))/100,1)*100 -> 3500 | F140: 4165 | H140: 3725 | I140: 4507.25
A141: 13800 | B141: =(formule!$B$36+formule!$D$36*SQRT(A141)) -> 3111.644238 | C141: =CEILING((formule!$B$36+formule!$D$36*SQRT(A141))/100,1)*100 -> 3200 | D141: 3808 | E141: =CEILING(((1+formule!$E$40)*(formule!$B$36+formule!$D$36*SQRT(A141)))/100,1)*100 -> 3500 | F141: 4165 | H141: 3725 | I141: 4507.25
A142: 13900 | B142: =(formule!$B$36+formule!$D$36*SQRT(A142)) -> 3122.753993 | C142: =CEILING((formule!$B$36+formule!$D$36*SQRT(A142))/100,1)*100 -> 3200 | D142: 3808 | E142: =CEILING(((1+formule!$E$40)*(formule!$B$36+formule!$D$36*SQRT(A142)))/100,1)*100 -> 3500 | F142: 4165 | H142: 3725 | I142: 4507.25
A143: 14000 | B143: =(formule!$B$36+formule!$D$36*SQRT(A143)) -> 3133.823856 | C143: =CEILING((formule!$B$36+formule!$D$36*SQRT(A143))/100,1)*100 -> 3200 | D143: 3808 | E143: =CEILING(((1+formule!$E$40)*(formule!$B$36+formule!$D$36*SQRT(A143)))/100,1)*100 -> 3500 | F143: 4165 | H143: 3725 | I143: 4507.25
A144: 14100 | B144: =(formule!$B$36+formule!$D$36*SQRT(A144)) -> 3144.854254 | C144: =CEILING((formule!$B$36+formule!$D$36*SQRT(A144))/100,1)*100 -> 3200 | D144: 3808 | E144: =CEILING(((1+formule!$E$40)*(formule!$B$36+formule!$D$36*SQRT(A144)))/100,1)*100 -> 3500 | F144: 4165 | H144: 3725 | I144: 4507.25
A145: 14200 | B145: =(formule!$B$36+formule!$D$36*SQRT(A145)) -> 3155.845606 | C145: =CEILING((formule!$B$36+formule!$D$36*SQRT(A145))/100,1)*100 -> 3200 | D145: 3808 | E145: =CEILING(((1+formule!$E$40)*(formule!$B$36+formule!$D$36*SQRT(A145)))/100,1)*100 -> 3500 | F145: 4165 | H145: 3725 | I145: 4507.25
A146: 14300 | B146: =(formule!$B$36+formule!$D$36*SQRT(A146)) -> 3166.798324 | C146: =CEILING((formule!$B$36+formule!$D$36*SQRT(A146))/100,1)*100 -> 3200 | D146: 3808 | E146: =CEILING(((1+formule!$E$40)*(formule!$B$36+formule!$D$36*SQRT(A146)))/100,1)*100 -> 3500 | F146: 4165 | H146: 3725 | I146: 4507.25
A147: 14400 | B147: =(formule!$B$36+formule!$D$36*SQRT(A147)) -> 3177.712812 | C147: =CEILING((formule!$B$36+formule!$D$36*SQRT(A147))/100,1)*100 -> 3200 | D147: 3808 | E147: =CEILING(((1+formule!$E$40)*(formule!$B$36+formule!$D$36*SQRT(A147)))/100,1)*100 -> 3500 | F147: 4165 | H147: 3725 | I147: 4507.25
A148: 14500 | B148: =(formule!$B$36+formule!$D$36*SQRT(A148)) -> 3188.589468 | C148: =CEILING((formule!$B$36+formule!$D$36*SQRT(A148))/100,1)*100 -> 3200 | D148: 3808 | E148: =CEILING(((1+formule!$E$40)*(formule!$B$36+formule!$D$36*SQRT(A148)))/100,1)*100 -> 3600 | F148: 4284 | H148: 3825 | I148: 4628.25
A149: 14600 | B149: =(formule!$B$36+formule!$D$36*SQRT(A149)) -> 3199.428682 | C149: =CEILING((formule!$B$36+formule!$D$36*SQRT(A149))/100,1)*100 -> 3200 | D149: 3808 | E149: =CEILING(((1+formule!$E$40)*(formule!$B$36+formule!$D$36*SQRT(A149)))/100,1)*100 -> 3600 | F149: 4284 | H149: 3825 | I149: 4628.25
A150: 14700 | B150: =(formule!$B$36+formule!$D$36*SQRT(A150)) -> 3210.230839 | C150: =CEILING((formule!$B$36+formule!$D$36*SQRT(A150))/100,1)*100 -> 3300 | D150: 3927 | E150: =CEILING(((1+formule!$E$40)*(formule!$B$36+formule!$D$36*SQRT(A150)))/100,1)*100 -> 3600 | F150: 4284 | H150: 3825 | I150: 4628.25
A151: 14800 | B151: =(formule!$B$36+formule!$D$36*SQRT(A151)) -> 3220.996316 | C151: =CEILING((formule!$B$36+formule!$D$36*SQRT(A151))/100,1)*100 -> 3300 | D151: 3927 | E151: =CEILING(((1+formule!$E$40)*(formule!$B$36+formule!$D$36*SQRT(A151)))/100,1)*100 -> 3600 | F151: 4284 | H151: 3825 | I151: 4628.25
A152: 14900 | B152: =(formule!$B$36+formule!$D$36*SQRT(A152)) -> 3231.725484 | C152: =CEILING((formule!$B$36+formule!$D$36*SQRT(A152))/100,1)*100 -> 3300 | D152: 3927 | E152: =CEILING(((1+formule!$E$40)*(formule!$B$36+formule!$D$36*SQRT(A152)))/100,1)*100 -> 3600 | F152: 4284 | H152: 3825 | I152: 4628.25
A153: 15000 | B153: =(formule!$B$36+formule!$D$36*SQRT(A153)) -> 3242.418708 | C153: =CEILING((formule!$B$36+formule!$D$36*SQRT(A153))/100,1)*100 -> 3300 | D153: 3927 | E153: =CEILING(((1+formule!$E$40)*(formule!$B$36+formule!$D$36*SQRT(A153)))/100,1)*100 -> 3600 | F153: 4284 | H153: 3825 | I153: 4628.25
A154: 15100 | B154: =(formule!$B$36+formule!$D$36*SQRT(A154)) -> 3253.076347 | C154: =CEILING((formule!$B$36+formule!$D$36*SQRT(A154))/100,1)*100 -> 3300 | D154: 3927 | E154: =CEILING(((1+formule!$E$40)*(formule!$B$36+formule!$D$36*SQRT(A154)))/100,1)*100 -> 3600 | F154: 4284 | H154: 3825 | I154: 4628.25
A155: 15200 | B155: =(formule!$B$36+formule!$D$36*SQRT(A155)) -> 3263.698754 | C155: =CEILING((formule!$B$36+formule!$D$36*SQRT(A155))/100,1)*100 -> 3300 | D155: 3927 | E155: =CEILING(((1+formule!$E$40)*(formule!$B$36+formule!$D$36*SQRT(A155)))/100,1)*100 -> 3600 | F155: 4284 | H155: 3825 | I155: 4628.25
A156: 15300 | B156: =(formule!$B$36+formule!$D$36*SQRT(A156)) -> 3274.286276 | C156: =CEILING((formule!$B$36+formule!$D$36*SQRT(A156))/100,1)*100 -> 3300 | D156: 3927 | E156: =CEILING(((1+formule!$E$40)*(formule!$B$36+formule!$D$36*SQRT(A156)))/100,1)*100 -> 3700 | F156: 4403 | H156: 3925 | I156: 4749.25
A157: 15400 | B157: =(formule!$B$36+formule!$D$36*SQRT(A157)) -> 3284.839254 | C157: =CEILING((formule!$B$36+formule!$D$36*SQRT(A157))/100,1)*100 -> 3300 | D157: 3927 | E157: =CEILING(((1+formule!$E$40)*(formule!$B$36+formule!$D$36*SQRT(A157)))/100,1)*100 -> 3700 | F157: 4403 | H157: 3925 | I157: 4749.25
A158: 15500 | B158: =(formule!$B$36+formule!$D$36*SQRT(A158)) -> 3295.358025 | C158: =CEILING((formule!$B$36+formule!$D$36*SQRT(A158))/100,1)*100 -> 3300 | D158: 3927 | E158: =CEILING(((1+formule!$E$40)*(formule!$B$36+formule!$D$36*SQRT(A158)))/100,1)*100 -> 3700 | F158: 4403 | H158: 3925 | I158: 4749.25
A159: 15600 | B159: =(formule!$B$36+formule!$D$36*SQRT(A159)) -> 3305.842918 | C159: =CEILING((formule!$B$36+formule!$D$36*SQRT(A159))/100,1)*100 -> 3400 | D159: 4046 | E159: =CEILING(((1+formule!$E$40)*(formule!$B$36+formule!$D$36*SQRT(A159)))/100,1)*100 -> 3700 | F159: 4403 | H159: 3925 | I159: 4749.25
A160: 15700 | B160: =(formule!$B$36+formule!$D$36*SQRT(A160)) -> 3316.29426 | C160: =CEILING((formule!$B$36+formule!$D$36*SQRT(A160))/100,1)*100 -> 3400 | D160: 4046 | E160: =CEILING(((1+formule!$E$40)*(formule!$B$36+formule!$D$36*SQRT(A160)))/100,1)*100 -> 3700 | F160: 4403 | H160: 3925 | I160: 4749.25
A161: 15800 | B161: =(formule!$B$36+formule!$D$36*SQRT(A161)) -> 3326.71237 | C161: =CEILING((formule!$B$36+formule!$D$36*SQRT(A161))/100,1)*100 -> 3400 | D161: 4046 | E161: =CEILING(((1+formule!$E$40)*(formule!$B$36+formule!$D$36*SQRT(A161)))/100,1)*100 -> 3700 | F161: 4403 | H161: 3925 | I161: 4749.25
A162: 15900 | B162: =(formule!$B$36+formule!$D$36*SQRT(A162)) -> 3337.097563 | C162: =CEILING((formule!$B$36+formule!$D$36*SQRT(A162))/100,1)*100 -> 3400 | D162: 4046 | E162: =CEILING(((1+formule!$E$40)*(formule!$B$36+formule!$D$36*SQRT(A162)))/100,1)*100 -> 3700 | F162: 4403 | H162: 3925 | I162: 4749.25
A163: 16000 | B163: =(formule!$B$36+formule!$D$36*SQRT(A163)) -> 3347.450149 | C163: =CEILING((formule!$B$36+formule!$D$36*SQRT(A163))/100,1)*100 -> 3400 | D163: 4046 | E163: =CEILING(((1+formule!$E$40)*(formule!$B$36+formule!$D$36*SQRT(A163)))/100,1)*100 -> 3700 | F163: 4403 | H163: =E163+225 -> 3925 | I163: 4749.25
A164: 16100 | B164: =(formule!$B$36+formule!$D$36*SQRT(A164)) -> 3357.770433 | C164: =CEILING((formule!$B$36+formule!$D$36*SQRT(A164))/100,1)*100 -> 3400 | D164: 4046 | E164: =CEILING(((1+formule!$E$40)*(formule!$B$36+formule!$D$36*SQRT(A164)))/100,1)*100 -> 3700 | F164: 4403 | H164: 3925 | I164: 4749.25
A165: 16200 | B165: =(formule!$B$36+formule!$D$36*SQRT(A165)) -> 3368.058716 | C165: =CEILING((formule!$B$36+formule!$D$36*SQRT(A165))/100,1)*100 -> 3400 | D165: 4046 | E165: =CEILING(((1+formule!$E$40)*(formule!$B$36+formule!$D$36*SQRT(A165)))/100,1)*100 -> 3800 | F165: 4522 | H165: 4025 | I165: 4870.25
A166: 16300 | B166: =(formule!$B$36+formule!$D$36*SQRT(A166)) -> 3378.315294 | C166: =CEILING((formule!$B$36+formule!$D$36*SQRT(A166))/100,1)*100 -> 3400 | D166: 4046 | E166: =CEILING(((1+formule!$E$40)*(formule!$B$36+formule!$D$36*SQRT(A166)))/100,1)*100 -> 3800 | F166: 4522 | H166: 4025 | I166: 4870.25
A167: 16400 | B167: =(formule!$B$36+formule!$D$36*SQRT(A167)) -> 3388.540458 | C167: =CEILING((formule!$B$36+formule!$D$36*SQRT(A167))/100,1)*100 -> 3400 | D167: 4046 | E167: =CEILING(((1+formule!$E$40)*(formule!$B$36+formule!$D$36*SQRT(A167)))/100,1)*100 -> 3800 | F167: 4522 | H167: 4025 | I167: 4870.25
A168: 16500 | B168: =(formule!$B$36+formule!$D$36*SQRT(A168)) -> 3398.734496 | C168: =CEILING((formule!$B$36+formule!$D$36*SQRT(A168))/100,1)*100 -> 3400 | D168: 4046 | E168: =CEILING(((1+formule!$E$40)*(formule!$B$36+formule!$D$36*SQRT(A168)))/100,1)*100 -> 3800 | F168: 4522 | H168: 4025 | I168: 4870.25
A169: 16600 | B169: =(formule!$B$36+formule!$D$36*SQRT(A169)) -> 3408.897688 | C169: =CEILING((formule!$B$36+formule!$D$36*SQRT(A169))/100,1)*100 -> 3500 | D169: 4165 | E169: =CEILING(((1+formule!$E$40)*(formule!$B$36+formule!$D$36*SQRT(A169)))/100,1)*100 -> 3800 | F169: 4522 | H169: 4025 | I169: 4870.25
A170: 16700 | B170: =(formule!$B$36+formule!$D$36*SQRT(A170)) -> 3419.030315 | C170: =CEILING((formule!$B$36+formule!$D$36*SQRT(A170))/100,1)*100 -> 3500 | D170: 4165 | E170: =CEILING(((1+formule!$E$40)*(formule!$B$36+formule!$D$36*SQRT(A170)))/100,1)*100 -> 3800 | F170: 4522 | H170: 4025 | I170: 4870.25
A171: 16800 | B171: =(formule!$B$36+formule!$D$36*SQRT(A171)) -> 3429.132649 | C171: =CEILING((formule!$B$36+formule!$D$36*SQRT(A171))/100,1)*100 -> 3500 | D171: 4165 | E171: =CEILING(((1+formule!$E$40)*(formule!$B$36+formule!$D$36*SQRT(A171)))/100,1)*100 -> 3800 | F171: 4522 | H171: 4025 | I171: 4870.25
A172: 16900 | B172: =(formule!$B$36+formule!$D$36*SQRT(A172)) -> 3439.204961 | C172: =CEILING((formule!$B$36+formule!$D$36*SQRT(A172))/100,1)*100 -> 3500 | D172: 4165 | E172: =CEILING(((1+formule!$E$40)*(formule!$B$36+formule!$D$36*SQRT(A172)))/100,1)*100 -> 3800 | F172: 4522 | H172: 4025 | I172: 4870.25
A173: 17000 | B173: =(formule!$B$36+formule!$D$36*SQRT(A173)) -> 3449.247518 | C173: =CEILING((formule!$B$36+formule!$D$36*SQRT(A173))/100,1)*100 -> 3500 | D173: 4165 | E173: =CEILING(((1+formule!$E$40)*(formule!$B$36+formule!$D$36*SQRT(A173)))/100,1)*100 -> 3800 | F173: 4522 | H173: 4025 | I173: 4870.25
A174: 17100 | B174: =(formule!$B$36+formule!$D$36*SQRT(A174)) -> 3459.26058 | C174: =CEILING((formule!$B$36+formule!$D$36*SQRT(A174))/100,1)*100 -> 3500 | D174: 4165 | E174: =CEILING(((1+formule!$E$40)*(formule!$B$36+formule!$D$36*SQRT(A174)))/100,1)*100 -> 3900 | F174: 4641 | H174: 4125 | I174: 4991.25
A175: 17200 | B175: =(formule!$B$36+formule!$D$36*SQRT(A175)) -> 3469.244407 | C175: =CEILING((formule!$B$36+formule!$D$36*SQRT(A175))/100,1)*100 -> 3500 | D175: 4165 | E175: =CEILING(((1+formule!$E$40)*(formule!$B$36+formule!$D$36*SQRT(A175)))/100,1)*100 -> 3900 | F175: 4641 | H175: 4125 | I175: 4991.25
A176: 17300 | B176: =(formule!$B$36+formule!$D$36*SQRT(A176)) -> 3479.199254 | C176: =CEILING((formule!$B$36+formule!$D$36*SQRT(A176))/100,1)*100 -> 3500 | D176: 4165 | E176: =CEILING(((1+formule!$E$40)*(formule!$B$36+formule!$D$36*SQRT(A176)))/100,1)*100 -> 3900 | F176: 4641 | H176: 4125 | I176: 4991.25
A177: 17400 | B177: =(formule!$B$36+formule!$D$36*SQRT(A177)) -> 3489.12537 | C177: =CEILING((formule!$B$36+formule!$D$36*SQRT(A177))/100,1)*100 -> 3500 | D177: 4165 | E177: =CEILING(((1+formule!$E$40)*(formule!$B$36+formule!$D$36*SQRT(A177)))/100,1)*100 -> 3900 | F177: 4641 | H177: 4125 | I177: 4991.25
A178: 17500 | B178: =(formule!$B$36+formule!$D$36*SQRT(A178)) -> 3499.023004 | C178: =CEILING((formule!$B$36+formule!$D$36*SQRT(A178))/100,1)*100 -> 3500 | D178: 4165 | E178: =CEILING(((1+formule!$E$40)*(formule!$B$36+formule!$D$36*SQRT(A178)))/100,1)*100 -> 3900 | F178: 4641 | H178: 4125 | I178: 4991.25
A179: 17600 | B179: =(formule!$B$36+formule!$D$36*SQRT(A179)) -> 3508.8924 | C179: =CEILING((formule!$B$36+formule!$D$36*SQRT(A179))/100,1)*100 -> 3600 | D179: 4284 | E179: =CEILING(((1+formule!$E$40)*(formule!$B$36+formule!$D$36*SQRT(A179)))/100,1)*100 -> 3900 | F179: 4641 | H179: 4125 | I179: 4991.25
A180: 17700 | B180: =(formule!$B$36+formule!$D$36*SQRT(A180)) -> 3518.733796 | C180: =CEILING((formule!$B$36+formule!$D$36*SQRT(A180))/100,1)*100 -> 3600 | D180: 4284 | E180: =CEILING(((1+formule!$E$40)*(formule!$B$36+formule!$D$36*SQRT(A180)))/100,1)*100 -> 3900 | F180: 4641 | H180: 4125 | I180: 4991.25
A181: 17800 | B181: =(formule!$B$36+formule!$D$36*SQRT(A181)) -> 3528.547432 | C181: =CEILING((formule!$B$36+formule!$D$36*SQRT(A181))/100,1)*100 -> 3600 | D181: 4284 | E181: =CEILING(((1+formule!$E$40)*(formule!$B$36+formule!$D$36*SQRT(A181)))/100,1)*100 -> 3900 | F181: 4641 | H181: 4125 | I181: 4991.25
A182: 17900 | B182: =(formule!$B$36+formule!$D$36*SQRT(A182)) -> 3538.333539 | C182: =CEILING((formule!$B$36+formule!$D$36*SQRT(A182))/100,1)*100 -> 3600 | D182: 4284 | E182: =CEILING(((1+formule!$E$40)*(formule!$B$36+formule!$D$36*SQRT(A182)))/100,1)*100 -> 3900 | F182: 4641 | H182: 4125 | I182: 4991.25
A183: 18000 | B183: =(formule!$B$36+formule!$D$36*SQRT(A183)) -> 3548.092349 | C183: =CEILING((formule!$B$36+formule!$D$36*SQRT(A183))/100,1)*100 -> 3600 | D183: 4284 | E183: =CEILING(((1+formule!$E$40)*(formule!$B$36+formule!$D$36*SQRT(A183)))/100,1)*100 -> 4000 | F183: 4760 | H183: 4225 | I183: 5112.25
A184: 18100 | B184: =(formule!$B$36+formule!$D$36*SQRT(A184)) -> 3557.824088 | C184: =CEILING((formule!$B$36+formule!$D$36*SQRT(A184))/100,1)*100 -> 3600 | D184: 4284 | E184: =CEILING(((1+formule!$E$40)*(formule!$B$36+formule!$D$36*SQRT(A184)))/100,1)*100 -> 4000 | F184: 4760 | H184: 4225 | I184: 5112.25
A185: 18200 | B185: =(formule!$B$36+formule!$D$36*SQRT(A185)) -> 3567.528981 | C185: =CEILING((formule!$B$36+formule!$D$36*SQRT(A185))/100,1)*100 -> 3600 | D185: 4284 | E185: =CEILING(((1+formule!$E$40)*(formule!$B$36+formule!$D$36*SQRT(A185)))/100,1)*100 -> 4000 | F185: 4760 | H185: 4225 | I185: 5112.25
A186: 18300 | B186: =(formule!$B$36+formule!$D$36*SQRT(A186)) -> 3577.207249 | C186: =CEILING((formule!$B$36+formule!$D$36*SQRT(A186))/100,1)*100 -> 3600 | D186: 4284 | E186: =CEILING(((1+formule!$E$40)*(formule!$B$36+formule!$D$36*SQRT(A186)))/100,1)*100 -> 4000 | F186: 4760 | H186: 4225 | I186: 5112.25
A187: 18400 | B187: =(formule!$B$36+formule!$D$36*SQRT(A187)) -> 3586.859109 | C187: =CEILING((formule!$B$36+formule!$D$36*SQRT(A187))/100,1)*100 -> 3600 | D187: 4284 | E187: =CEILING(((1+formule!$E$40)*(formule!$B$36+formule!$D$36*SQRT(A187)))/100,1)*100 -> 4000 | F187: 4760 | H187: 4225 | I187: 5112.25
A188: 18500 | B188: =(formule!$B$36+formule!$D$36*SQRT(A188)) -> 3596.484777 | C188: =CEILING((formule!$B$36+formule!$D$36*SQRT(A188))/100,1)*100 -> 3600 | D188: 4284 | E188: =CEILING(((1+formule!$E$40)*(formule!$B$36+formule!$D$36*SQRT(A188)))/100,1)*100 -> 4000 | F188: 4760 | H188: 4225 | I188: 5112.25
A189: 18600 | B189: =(formule!$B$36+formule!$D$36*SQRT(A189)) -> 3606.084465 | C189: =CEILING((formule!$B$36+formule!$D$36*SQRT(A189))/100,1)*100 -> 3700 | D189: 4403 | E189: =CEILING(((1+formule!$E$40)*(formule!$B$36+formule!$D$36*SQRT(A189)))/100,1)*100 -> 4000 | F189: 4760 | H189: 4225 | I189: 5112.25
A190: 18700 | B190: =(formule!$B$36+formule!$D$36*SQRT(A190)) -> 3615.658381 | C190: =CEILING((formule!$B$36+formule!$D$36*SQRT(A190))/100,1)*100 -> 3700 | D190: 4403 | E190: =CEILING(((1+formule!$E$40)*(formule!$B$36+formule!$D$36*SQRT(A190)))/100,1)*100 -> 4000 | F190: 4760 | H190: 4225 | I190: 5112.25
A191: 18800 | B191: =(formule!$B$36+formule!$D$36*SQRT(A191)) -> 3625.206733 | C191: =CEILING((formule!$B$36+formule!$D$36*SQRT(A191))/100,1)*100 -> 3700 | D191: 4403 | E191: =CEILING(((1+formule!$E$40)*(formule!$B$36+formule!$D$36*SQRT(A191)))/100,1)*100 -> 4000 | F191: 4760 | H191: 4225 | I191: 5112.25
A192: 18900 | B192: =(formule!$B$36+formule!$D$36*SQRT(A192)) -> 3634.729723 | C192: =CEILING((formule!$B$36+formule!$D$36*SQRT(A192))/100,1)*100 -> 3700 | D192: 4403 | E192: =CEILING(((1+formule!$E$40)*(formule!$B$36+formule!$D$36*SQRT(A192)))/100,1)*100 -> 4000 | F192: 4760 | H192: 4225 | I192: 5112.25
A193: 19000 | B193: =(formule!$B$36+formule!$D$36*SQRT(A193)) -> 3644.227554 | C193: =CEILING((formule!$B$36+formule!$D$36*SQRT(A193))/100,1)*100 -> 3700 | D193: 4403 | E193: =CEILING(((1+formule!$E$40)*(formule!$B$36+formule!$D$36*SQRT(A193)))/100,1)*100 -> 4100 | F193: 4879 | H193: 4325 | I193: 5233.25
A194: 19100 | B194: =(formule!$B$36+formule!$D$36*SQRT(A194)) -> 3653.700423 | C194: =CEILING((formule!$B$36+formule!$D$36*SQRT(A194))/100,1)*100 -> 3700 | D194: 4403 | E194: =CEILING(((1+formule!$E$40)*(formule!$B$36+formule!$D$36*SQRT(A194)))/100,1)*100 -> 4100 | F194: 4879 | H194: 4325 | I194: 5233.25
A195: 19200 | B195: =(formule!$B$36+formule!$D$36*SQRT(A195)) -> 3663.148527 | C195: =CEILING((formule!$B$36+formule!$D$36*SQRT(A195))/100,1)*100 -> 3700 | D195: 4403 | E195: =CEILING(((1+formule!$E$40)*(formule!$B$36+formule!$D$36*SQRT(A195)))/100,1)*100 -> 4100 | F195: 4879 | H195: 4325 | I195: 5233.25
A196: 19300 | B196: =(formule!$B$36+formule!$D$36*SQRT(A196)) -> 3672.572058 | C196: =CEILING((formule!$B$36+formule!$D$36*SQRT(A196))/100,1)*100 -> 3700 | D196: 4403 | E196: =CEILING(((1+formule!$E$40)*(formule!$B$36+formule!$D$36*SQRT(A196)))/100,1)*100 -> 4100 | F196: =E196*1.19 -> 4879 | H196: 4325 | I196: 5233.25
A197: 19400 | B197: =(formule!$B$36+formule!$D$36*SQRT(A197)) -> 3681.971207 | C197: =CEILING((formule!$B$36+formule!$D$36*SQRT(A197))/100,1)*100 -> 3700 | D197: 4403 | E197: =CEILING(((1+formule!$E$40)*(formule!$B$36+formule!$D$36*SQRT(A197)))/100,1)*100 -> 4100 | F197: 4879 | H197: 4325 | I197: =H197*1.21 -> 5233.25
A198: 19500 | B198: =(formule!$B$36+formule!$D$36*SQRT(A198)) -> 3691.346162 | C198: =CEILING((formule!$B$36+formule!$D$36*SQRT(A198))/100,1)*100 -> 3700 | D198: 4403 | E198: =CEILING(((1+formule!$E$40)*(formule!$B$36+formule!$D$36*SQRT(A198)))/100,1)*100 -> 4100 | F198: 4879 | H198: 4325 | I198: 5233.25
A199: 19600 | B199: =(formule!$B$36+formule!$D$36*SQRT(A199)) -> 3700.69711 | C199: =CEILING((formule!$B$36+formule!$D$36*SQRT(A199))/100,1)*100 -> 3800 | D199: 4522 | E199: =CEILING(((1+formule!$E$40)*(formule!$B$36+formule!$D$36*SQRT(A199)))/100,1)*100 -> 4100 | F199: 4879 | H199: 4325 | I199: 5233.25
A200: 19700 | B200: =(formule!$B$36+formule!$D$36*SQRT(A200)) -> 3710.024234 | C200: =CEILING((formule!$B$36+formule!$D$36*SQRT(A200))/100,1)*100 -> 3800 | D200: 4522 | E200: =CEILING(((1+formule!$E$40)*(formule!$B$36+formule!$D$36*SQRT(A200)))/100,1)*100 -> 4100 | F200: 4879 | H200: 4325 | I200: 5233.25
... 9803 more rows

Sheet Tabel
A1: Schadebedrag | C1: ='kosten tabel 2015'!H1 -> Kosten volgens tabel 2015 inclusief €225 (excl. BTW) in zaken >3000 <=50.000, daarna aflopend
A2: ='kosten tabel 2015'!A3 -> euro | C2: ='kosten tabel 2015'!H2 -> Excl. BTW | D2: ='kosten tabel 2015'!I2 -> Incl. BTW 21%
A4: ='kosten tabel 2015'!A4 -> 100 | C4: ='kosten tabel 2015'!H4 -> 600 | D4: ='kosten tabel 2015'!I4 -> 726
A5: ='kosten tabel 2015'!A5 -> 200 | C5: ='kosten tabel 2015'!H5 -> 600 | D5: ='kosten tabel 2015'!I5 -> 726
A6: ='kosten tabel 2015'!A6 -> 300 | C6: ='kosten tabel 2015'!H6 -> 600 | D6: ='kosten tabel 2015'!I6 -> 726
A7: ='kosten tabel 2015'!A7 -> 400 | C7: ='kosten tabel 2015'!H7 -> 600 | D7: ='kosten tabel 2015'!I7 -> 726
A8: ='kosten tabel 2015'!A8 -> 500 | C8: ='kosten tabel 2015'!H8 -> 700 | D8: ='kosten tabel 2015'!I8 -> 847
A9: ='kosten tabel 2015'!A9 -> 600 | C9: ='kosten tabel 2015'!H9 -> 800 | D9: ='kosten tabel 2015'!I9 -> 968
A10: ='kosten tabel 2015'!A10 -> 700 | C10: ='kosten tabel 2015'!H10 -> 900 | D10: ='kosten tabel 2015'!I10 -> 1089
A11: ='kosten tabel 2015'!A11 -> 800 | C11: ='kosten tabel 2015'!H11 -> 900 | D11: ='kosten tabel 2015'!I11 -> 1089
A12: ='kosten tabel 2015'!A12 -> 900 | C12: ='kosten tabel 2015'!H12 -> 1000 | D12: ='kosten tabel 2015'!I12 -> 1210
A13: ='kosten tabel 2015'!A13 -> 1000 | C13: ='kosten tabel 2015'!H13 -> 1000 | D13: ='kosten tabel 2015'!I13 -> 1210
A14: ='kosten tabel 2015'!A14 -> 1100 | C14: ='kosten tabel 2015'!H14 -> 1000 | D14: ='kosten tabel 2015'!I14 -> 1210
A15: ='kosten tabel 2015'!A15 -> 1200 | C15: ='kosten tabel 2015'!H15 -> 1100 | D15: ='kosten tabel 2015'!I15 -> 1331
A16: ='kosten tabel 2015'!A16 -> 1300 | C16: ='kosten tabel 2015'!H16 -> 1100 | D16: ='kosten tabel 2015'!I16 -> 1331
A17: ='kosten tabel 2015'!A17 -> 1400 | C17: ='kosten tabel 2015'!H17 -> 1200 | D17: ='kosten tabel 2015'!I17 -> 1452
A18: ='kosten tabel 2015'!A18 -> 1500 | C18: ='kosten tabel 2015'!H18 -> 1200 | D18: ='kosten tabel 2015'!I18 -> 1452
A19: ='kosten tabel 2015'!A19 -> 1600 | C19: ='kosten tabel 2015'!H19 -> 1200 | D19: ='kosten tabel 2015'!I19 -> 1452
A20: ='kosten tabel 2015'!A20 -> 1700 | C20: ='kosten tabel 2015'!H20 -> 1300 | D20: ='kosten tabel 2015'!I20 -> 1573
A21: ='kosten tabel 2015'!A21 -> 1800 | C21: ='kosten tabel 2015'!H21 -> 1300 | D21: ='kosten tabel 2015'!I21 -> 1573
A22: ='kosten tabel 2015'!A22 -> 1900 | C22: ='kosten tabel 2015'!H22 -> 1300 | D22: ='kosten tabel 2015'!I22 -> 1573
A23: ='kosten tabel 2015'!A23 -> 2000 | C23: ='kosten tabel 2015'!H23 -> 1400 | D23: ='kosten tabel 2015'!I23 -> 1694
A24: ='kosten tabel 2015'!A24 -> 2100 | C24: ='kosten tabel 2015'!H24 -> 1400 | D24: ='kosten tabel 2015'!I24 -> 1694
A25: ='kosten tabel 2015'!A25 -> 2200 | C25: ='kosten tabel 2015'!H25 -> 1400 | D25: ='kosten tabel 2015'!I25 -> 1694
A26: ='kosten tabel 2015'!A26 -> 2300 | C26: ='kosten tabel 2015'!H26 -> 1500 | D26: ='kosten tabel 2015'!I26 -> 1815
A27: ='kosten tabel 2015'!A27 -> 2400 | C27: ='kosten tabel 2015'!H27 -> 1500 | D27: ='kosten tabel 2015'!I27 -> 1815
A28: ='kosten tabel 2015'!A28 -> 2500 | C28: ='kosten tabel 2015'!H28 -> 1500 | D28: ='kosten tabel 2015'!I28 -> 1815
A29: ='kosten tabel 2015'!A29 -> 2600 | C29: ='kosten tabel 2015'!H29 -> 1600 | D29: ='kosten tabel 2015'!I29 -> 1936
A30: ='kosten tabel 2015'!A30 -> 2700 | C30: ='kosten tabel 2015'!H30 -> 1600 | D30: ='kosten tabel 2015'!I30 -> 1936
A31: ='kosten tabel 2015'!A31 -> 2800 | C31: ='kosten tabel 2015'!H31 -> 1600 | D31: ='kosten tabel 2015'!I31 -> 1936
A32: ='kosten tabel 2015'!A32 -> 2900 | C32: ='kosten tabel 2015'!H32 -> 1600 | D32: ='kosten tabel 2015'!I32 -> 1936
A33: ='kosten tabel 2015'!A33 -> 3000 | C33: ='kosten tabel 2015'!H33 -> 1700 | D33: ='kosten tabel 2015'!I33 -> 2057
A34: ='kosten tabel 2015'!A34 -> 3100 | C34: ='kosten tabel 2015'!H34 -> 1925 | D34: ='kosten tabel 2015'!I34 -> 2329.25
A35: ='kosten tabel 2015'!A35 -> 3200 | C35: ='kosten tabel 2015'!H35 -> 1925 | D35: ='kosten tabel 2015'!I35 -> 2329.25
A36: ='kosten tabel 2015'!A36 -> 3300 | C36: ='kosten tabel 2015'!H36 -> 1925 | D36: ='kosten tabel 2015'!I36 -> 2329.25
A37: ='kosten tabel 2015'!A37 -> 3400 | C37: ='kosten tabel 2015'!H37 -> 2025 | D37: ='kosten tabel 2015'!I37 -> 2450.25
A38: ='kosten tabel 2015'!A38 -> 3500 | C38: ='kosten tabel 2015'!H38 -> 2025 | D38: ='kosten tabel 2015'!I38 -> 2450.25
A39: ='kosten tabel 2015'!A39 -> 3600 | C39: ='kosten tabel 2015'!H39 -> 2025 | D39: ='kosten tabel 2015'!I39 -> 2450.25
A40: ='kosten tabel 2015'!A40 -> 3700 | C40: ='kosten tabel 2015'!H40 -> 2025 | D40: ='kosten tabel 2015'!I40 -> 2450.25
A41: ='kosten tabel 2015'!A41 -> 3800 | C41: ='kosten tabel 2015'!H41 -> 2125 | D41: ='kosten tabel 2015'!I41 -> 2571.25
A42: ='kosten tabel 2015'!A42 -> 3900 | C42: ='kosten tabel 2015'!H42 -> 2125 | D42: ='kosten tabel 2015'!I42 -> 2571.25
A43: ='kosten tabel 2015'!A43 -> 4000 | C43: ='kosten tabel 2015'!H43 -> 2125 | D43: ='kosten tabel 2015'!I43 -> 2571.25
A44: ='kosten tabel 2015'!A44 -> 4100 | C44: ='kosten tabel 2015'!H44 -> 2125 | D44: ='kosten tabel 2015'!I44 -> 2571.25
A45: ='kosten tabel 2015'!A45 -> 4200 | C45: ='kosten tabel 2015'!H45 -> 2225 | D45: ='kosten tabel 2015'!I45 -> 2692.25
A46: ='kosten tabel 2015'!A46 -> 4300 | C46: ='kosten tabel 2015'!H46 -> 2225 | D46: ='kosten tabel 2015'!I46 -> 2692.25
A47: ='kosten tabel 2015'!A47 -> 4400 | C47: ='kosten tabel 2015'!H47 -> 2225 | D47: ='kosten tabel 2015'!I47 -> 2692.25
A48: ='kosten tabel 2015'!A48 -> 4500 | C48: ='kosten tabel 2015'!H48 -> 2225 | D48: ='kosten tabel 2015'!I48 -> 2692.25
A49: ='kosten tabel 2015'!A49 -> 4600 | C49: ='kosten tabel 2015'!H49 -> 2225 | D49: ='kosten tabel 2015'!I49 -> 2692.25
A50: ='kosten tabel 2015'!A50 -> 4700 | C50: ='kosten tabel 2015'!H50 -> 2325 | D50: ='kosten tabel 2015'!I50 -> 2813.25
A51: ='kosten tabel 2015'!A51 -> 4800 | C51: ='kosten tabel 2015'!H51 -> 2325 | D51: ='kosten tabel 2015'!I51 -> 2813.25
A52: ='kosten tabel 2015'!A52 -> 4900 | C52: ='kosten tabel 2015'!H52 -> 2325 | D52: ='kosten tabel 2015'!I52 -> 2813.25
A53: ='kosten tabel 2015'!A53 -> 5000 | C53: ='kosten tabel 2015'!H53 -> 2325 | D53: ='kosten tabel 2015'!I53 -> 2813.25
A54: ='kosten tabel 2015'!A54 -> 5100 | C54: ='kosten tabel 2015'!H54 -> 2325 | D54: ='kosten tabel 2015'!I54 -> 2813.25
A55: ='kosten tabel 2015'!A55 -> 5200 | C55: ='kosten tabel 2015'!H55 -> 2425 | D55: ='kosten tabel 2015'!I55 -> 2934.25
A56: ='kosten tabel 2015'!A56 -> 5300 | C56: ='kosten tabel 2015'!H56 -> 2425 | D56: ='kosten tabel 2015'!I56 -> 2934.25
A57: ='kosten tabel 2015'!A57 -> 5400 | C57: ='kosten tabel 2015'!H57 -> 2425 | D57: ='kosten tabel 2015'!I57 -> 2934.25
A58: ='kosten tabel 2015'!A58 -> 5500 | C58: ='kosten tabel 2015'!H58 -> 2425 | D58: ='kosten tabel 2015'!I58 -> 2934.25
A59: ='kosten tabel 2015'!A59 -> 5600 | C59: ='kosten tabel 2015'!H59 -> 2425 | D59: ='kosten tabel 2015'!I59 -> 2934.25
A60: ='kosten tabel 2015'!A60 -> 5700 | C60: ='kosten tabel 2015'!H60 -> 2525 | D60: ='kosten tabel 2015'!I60 -> 3055.25
A61: ='kosten tabel 2015'!A61 -> 5800 | C61: ='kosten tabel 2015'!H61 -> 2525 | D61: ='kosten tabel 2015'!I61 -> 3055.25
A62: ='kosten tabel 2015'!A62 -> 5900 | C62: ='kosten tabel 2015'!H62 -> 2525 | D62: ='kosten tabel 2015'!I62 -> 3055.25
A63: ='kosten tabel 2015'!A63 -> 6000 | C63: ='kosten tabel 2015'!H63 -> 2525 | D63: ='kosten tabel 2015'!I63 -> 3055.25
A64: ='kosten tabel 2015'!A64 -> 6100 | C64: ='kosten tabel 2015'!H64 -> 2525 | D64: ='kosten tabel 2015'!I64 -> 3055.25
A65: ='kosten tabel 2015'!A65 -> 6200 | C65: ='kosten tabel 2015'!H65 -> 2625 | D65: ='kosten tabel 2015'!I65 -> 3176.25
A66: ='kosten tabel 2015'!A66 -> 6300 | C66: ='kosten tabel 2015'!H66 -> 2625 | D66: ='kosten tabel 2015'!I66 -> 3176.25
A67: ='kosten tabel 2015'!A67 -> 6400 | C67: ='kosten tabel 2015'!H67 -> 2625 | D67: ='kosten tabel 2015'!I67 -> 3176.25
A68: ='kosten tabel 2015'!A68 -> 6500 | C68: ='kosten tabel 2015'!H68 -> 2625 | D68: ='kosten tabel 2015'!I68 -> 3176.25
A69: ='kosten tabel 2015'!A69 -> 6600 | C69: ='kosten tabel 2015'!H69 -> 2625 | D69: ='kosten tabel 2015'!I69 -> 3176.25
A70: ='kosten tabel 2015'!A70 -> 6700 | C70: ='kosten tabel 2015'!H70 -> 2625 | D70: ='kosten tabel 2015'!I70 -> 3176.25
A71: ='kosten tabel 2015'!A71 -> 6800 | C71: ='kosten tabel 2015'!H71 -> 2725 | D71: ='kosten tabel 2015'!I71 -> 3297.25
A72: ='kosten tabel 2015'!A72 -> 6900 | C72: ='kosten tabel 2015'!H72 -> 2725 | D72: ='kosten tabel 2015'!I72 -> 3297.25
A73: ='kosten tabel 2015'!A73 -> 7000 | C73: ='kosten tabel 2015'!H73 -> 2725 | D73: ='kosten tabel 2015'!I73 -> 3297.25
A74: ='kosten tabel 2015'!A74 -> 7100 | C74: ='kosten tabel 2015'!H74 -> 2725 | D74: ='kosten tabel 2015'!I74 -> 3297.25
A75: ='kosten tabel 2015'!A75 -> 7200 | C75: ='kosten tabel 2015'!H75 -> 2725 | D75: ='kosten tabel 2015'!I75 -> 3297.25
A76: ='kosten tabel 2015'!A76 -> 7300 | C76: ='kosten tabel 2015'!H76 -> 2825 | D76: ='kosten tabel 2015'!I76 -> 3418.25
A77: ='kosten tabel 2015'!A77 -> 7400 | C77: ='kosten tabel 2015'!H77 -> 2825 | D77: ='kosten tabel 2015'!I77 -> 3418.25
A78: ='kosten tabel 2015'!A78 -> 7500 | C78: ='kosten tabel 2015'!H78 -> 2825 | D78: ='kosten tabel 2015'!I78 -> 3418.25
A79: ='kosten tabel 2015'!A79 -> 7600 | C79: ='kosten tabel 2015'!H79 -> 2825 | D79: ='kosten tabel 2015'!I79 -> 3418.25
A80: ='kosten tabel 2015'!A80 -> 7700 | C80: ='kosten tabel 2015'!H80 -> 2825 | D80: ='kosten tabel 2015'!I80 -> 3418.25
A81: ='kosten tabel 2015'!A81 -> 7800 | C81: ='kosten tabel 2015'!H81 -> 2825 | D81: ='kosten tabel 2015'!I81 -> 3418.25
A82: ='kosten tabel 2015'!A82 -> 7900 | C82: ='kosten tabel 2015'!H82 -> 2925 | D82: ='kosten tabel 2015'!I82 -> 3539.25
A83: ='kosten tabel 2015'!A83 -> 8000 | C83: ='kosten tabel 2015'!H83 -> 2925 | D83: ='kosten tabel 2015'!I83 -> 3539.25
A84: ='kosten tabel 2015'!A84 -> 8100 | C84: ='kosten tabel 2015'!H84 -> 2925 | D84: ='kosten tabel 2015'!I84 -> 3539.25
A85: ='kosten tabel 2015'!A85 -> 8200 | C85: ='kosten tabel 2015'!H85 -> 2925 | D85: ='kosten tabel 2015'!I85 -> 3539.25
A86: ='kosten tabel 2015'!A86 -> 8300 | C86: ='kosten tabel 2015'!H86 -> 2925 | D86: ='kosten tabel 2015'!I86 -> 3539.25
A87: ='kosten tabel 2015'!A87 -> 8400 | C87: ='kosten tabel 2015'!H87 -> 2925 | D87: ='kosten tabel 2015'!I87 -> 3539.25
A88: ='kosten tabel 2015'!A88 -> 8500 | C88: ='kosten tabel 2015'!H88 -> 2925 | D88: ='kosten tabel 2015'!I88 -> 3539.25
A89: ='kosten tabel 2015'!A89 -> 8600 | C89: ='kosten tabel 2015'!H89 -> 3025 | D89: ='kosten tabel 2015'!I89 -> 3660.25
A90: ='kosten tabel 2015'!A90 -> 8700 | C90: ='kosten tabel 2015'!H90 -> 3025 | D90: ='kosten tabel 2015'!I90 -> 3660.25
A91: ='kosten tabel 2015'!A91 -> 8800 | C91: ='kosten tabel 2015'!H91 -> 3025 | D91: ='kosten tabel 2015'!I91 -> 3660.25
A92: ='kosten tabel 2015'!A92 -> 8900 | C92: ='kosten tabel 2015'!H92 -> 3025 | D92: ='kosten tabel 2015'!I92 -> 3660.25
A93: ='kosten tabel 2015'!A93 -> 9000 | C93: ='kosten tabel 2015'!H93 -> 3025 | D93: ='kosten tabel 2015'!I93 -> 3660.25
A94: ='kosten tabel 2015'!A94 -> 9100 | C94: ='kosten tabel 2015'!H94 -> 3025 | D94: ='kosten tabel 2015'!I94 -> 3660.25
A95: ='kosten tabel 2015'!A95 -> 9200 | C95: ='kosten tabel 2015'!H95 -> 3125 | D95: ='kosten tabel 2015'!I95 -> 3781.25
A96: ='kosten tabel 2015'!A96 -> 9300 | C96: ='kosten tabel 2015'!H96 -> 3125 | D96: ='kosten tabel 2015'!I96 -> 3781.25
A97: ='kosten tabel 2015'!A97 -> 9400 | C97: ='kosten tabel 2015'!H97 -> 3125 | D97: ='kosten tabel 2015'!I97 -> 3781.25
A98: ='kosten tabel 2015'!A98 -> 9500 | C98: ='kosten tabel 2015'!H98 -> 3125 | D98: ='kosten tabel 2015'!I98 -> 3781.25
A99: ='kosten tabel 2015'!A99 -> 9600 | C99: ='kosten tabel 2015'!H99 -> 3125 | D99: ='kosten tabel 2015'!I99 -> 3781.25
A100: ='kosten tabel 2015'!A100 -> 9700 | C100: ='kosten tabel 2015'!H100 -> 3125 | D100: ='kosten tabel 2015'!I100 -> 3781.25
A101: ='kosten tabel 2015'!A101 -> 9800 | C101: ='kosten tabel 2015'!H101 -> 3125 | D101: ='kosten tabel 2015'!I101 -> 3781.25
A102: ='kosten tabel 2015'!A102 -> 9900 | C102: ='kosten tabel 2015'!H102 -> 3225 | D102: ='kosten tabel 2015'!I102 -> 3902.25
A103: ='kosten tabel 2015'!A103 -> 10000 | C103: ='kosten tabel 2015'!H103 -> 3225 | D103: ='kosten tabel 2015'!I103 -> 3902.25
A104: ='kosten tabel 2015'!A104 -> 10100 | C104: ='kosten tabel 2015'!H104 -> 3225 | D104: ='kosten tabel 2015'!I104 -> 3902.25
A105: ='kosten tabel 2015'!A105 -> 10200 | C105: ='kosten tabel 2015'!H105 -> 3225 | D105: ='kosten tabel 2015'!I105 -> 3902.25
A106: ='kosten tabel 2015'!A106 -> 10300 | C106: ='kosten tabel 2015'!H106 -> 3225 | D106: ='kosten tabel 2015'!I106 -> 3902.25
A107: ='kosten tabel 2015'!A107 -> 10400 | C107: ='kosten tabel 2015'!H107 -> 3225 | D107: ='kosten tabel 2015'!I107 -> 3902.25
A108: ='kosten tabel 2015'!A108 -> 10500 | C108: ='kosten tabel 2015'!H108 -> 3225 | D108: ='kosten tabel 2015'!I108 -> 3902.25
A109: ='kosten tabel 2015'!A109 -> 10600 | C109: ='kosten tabel 2015'!H109 -> 3325 | D109: ='kosten tabel 2015'!I109 -> 4023.25
A110: ='kosten tabel 2015'!A110 -> 10700 | C110: ='kosten tabel 2015'!H110 -> 3325 | D110: ='kosten tabel 2015'!I110 -> 4023.25
A111: ='kosten tabel 2015'!A111 -> 10800 | C111: ='kosten tabel 2015'!H111 -> 3325 | D111: ='kosten tabel 2015'!I111 -> 4023.25
A112: ='kosten tabel 2015'!A112 -> 10900 | C112: ='kosten tabel 2015'!H112 -> 3325 | D112: ='kosten tabel 2015'!I112 -> 4023.25
A113: ='kosten tabel 2015'!A113 -> 11000 | C113: ='kosten tabel 2015'!H113 -> 3325 | D113: ='kosten tabel 2015'!I113 -> 4023.25
A114: ='kosten tabel 2015'!A114 -> 11100 | C114: ='kosten tabel 2015'!H114 -> 3325 | D114: ='kosten tabel 2015'!I114 -> 4023.25
A115: ='kosten tabel 2015'!A115 -> 11200 | C115: ='kosten tabel 2015'!H115 -> 3325 | D115: ='kosten tabel 2015'!I115 -> 4023.25
A116: ='kosten tabel 2015'!A116 -> 11300 | C116: ='kosten tabel 2015'!H116 -> 3425 | D116: ='kosten tabel 2015'!I116 -> 4144.25
A117: ='kosten tabel 2015'!A117 -> 11400 | C117: ='kosten tabel 2015'!H117 -> 3425 | D117: ='kosten tabel 2015'!I117 -> 4144.25
A118: ='kosten tabel 2015'!A118 -> 11500 | C118: ='kosten tabel 2015'!H118 -> 3425 | D118: ='kosten tabel 2015'!I118 -> 4144.25
A119: ='kosten tabel 2015'!A119 -> 11600 | C119: ='kosten tabel 2015'!H119 -> 3425 | D119: ='kosten tabel 2015'!I119 -> 4144.25
A120: ='kosten tabel 2015'!A120 -> 11700 | C120: ='kosten tabel 2015'!H120 -> 3425 | D120: ='kosten tabel 2015'!I120 -> 4144.25
A121: ='kosten tabel 2015'!A121 -> 11800 | C121: ='kosten tabel 2015'!H121 -> 3425 | D121: ='kosten tabel 2015'!I121 -> 4144.25
A122: ='kosten tabel 2015'!A122 -> 11900 | C122: ='kosten tabel 2015'!H122 -> 3425 | D122: ='kosten tabel 2015'!I122 -> 4144.25
A123: ='kosten tabel 2015'!A123 -> 12000 | C123: ='kosten tabel 2015'!H123 -> 3425 | D123: ='kosten tabel 2015'!I123 -> 4144.25
A124: ='kosten tabel 2015'!A124 -> 12100 | C124: ='kosten tabel 2015'!H124 -> 3525 | D124: ='kosten tabel 2015'!I124 -> 4265.25
A125: ='kosten tabel 2015'!A125 -> 12200 | C125: ='kosten tabel 2015'!H125 -> 3525 | D125: ='kosten tabel 2015'!I125 -> 4265.25
A126: ='kosten tabel 2015'!A126 -> 12300 | C126: ='kosten tabel 2015'!H126 -> 3525 | D126: ='kosten tabel 2015'!I126 -> 4265.25
A127: ='kosten tabel 2015'!A127 -> 12400 | C127: ='kosten tabel 2015'!H127 -> 3525 | D127: ='kosten tabel 2015'!I127 -> 4265.25
A128: ='kosten tabel 2015'!A128 -> 12500 | C128: ='kosten tabel 2015'!H128 -> 3525 | D128: ='kosten tabel 2015'!I128 -> 4265.25
A129: ='kosten tabel 2015'!A129 -> 12600 | C129: ='kosten tabel 2015'!H129 -> 3525 | D129: ='kosten tabel 2015'!I129 -> 4265.25
A130: ='kosten tabel 2015'!A130 -> 12700 | C130: ='kosten tabel 2015'!H130 -> 3525 | D130: ='kosten tabel 2015'!I130 -> 4265.25
A131: ='kosten tabel 2015'!A131 -> 12800 | C131: ='kosten tabel 2015'!H131 -> 3525 | D131: ='kosten tabel 2015'!I131 -> 4265.25
A132: ='kosten tabel 2015'!A132 -> 12900 | C132: ='kosten tabel 2015'!H132 -> 3625 | D132: ='kosten tabel 2015'!I132 -> 4386.25
A133: ='kosten tabel 2015'!A133 -> 13000 | C133: ='kosten tabel 2015'!H133 -> 3625 | D133: ='kosten tabel 2015'!I133 -> 4386.25
A134: ='kosten tabel 2015'!A134 -> 13100 | C134: ='kosten tabel 2015'!H134 -> 3625 | D134: ='kosten tabel 2015'!I134 -> 4386.25
A135: ='kosten tabel 2015'!A135 -> 13200 | C135: ='kosten tabel 2015'!H135 -> 3625 | D135: ='kosten tabel 2015'!I135 -> 4386.25
A136: ='kosten tabel 2015'!A136 -> 13300 | C136: ='kosten tabel 2015'!H136 -> 3625 | D136: ='kosten tabel 2015'!I136 -> 4386.25
A137: ='kosten tabel 2015'!A137 -> 13400 | C137: ='kosten tabel 2015'!H137 -> 3625 | D137: ='kosten tabel 2015'!I137 -> 4386.25
A138: ='kosten tabel 2015'!A138 -> 13500 | C138: ='kosten tabel 2015'!H138 -> 3625 | D138: ='kosten tabel 2015'!I138 -> 4386.25
A139: ='kosten tabel 2015'!A139 -> 13600 | C139: ='kosten tabel 2015'!H139 -> 3625 | D139: ='kosten tabel 2015'!I139 -> 4386.25
A140: ='kosten tabel 2015'!A140 -> 13700 | C140: ='kosten tabel 2015'!H140 -> 3725 | D140: ='kosten tabel 2015'!I140 -> 4507.25
A141: ='kosten tabel 2015'!A141 -> 13800 | C141: ='kosten tabel 2015'!H141 -> 3725 | D141: ='kosten tabel 2015'!I141 -> 4507.25
A142: ='kosten tabel 2015'!A142 -> 13900 | C142: ='kosten tabel 2015'!H142 -> 3725 | D142: ='kosten tabel 2015'!I142 -> 4507.25
A143: ='kosten tabel 2015'!A143 -> 14000 | C143: ='kosten tabel 2015'!H143 -> 3725 | D143: ='kosten tabel 2015'!I143 -> 4507.25
A144: ='kosten tabel 2015'!A144 -> 14100 | C144: ='kosten tabel 2015'!H144 -> 3725 | D144: ='kosten tabel 2015'!I144 -> 4507.25
A145: ='kosten tabel 2015'!A145 -> 14200 | C145: ='kosten tabel 2015'!H145 -> 3725 | D145: ='kosten tabel 2015'!I145 -> 4507.25
A146: ='kosten tabel 2015'!A146 -> 14300 | C146: ='kosten tabel 2015'!H146 -> 3725 | D146: ='kosten tabel 2015'!I146 -> 4507.25
A147: ='kosten tabel 2015'!A147 -> 14400 | C147: ='kosten tabel 2015'!H147 -> 3725 | D147: ='kosten tabel 2015'!I147 -> 4507.25
A148: ='kosten tabel 2015'!A148 -> 14500 | C148: ='kosten tabel 2015'!H148 -> 3825 | D148: ='kosten tabel 2015'!I148 -> 4628.25
A149: ='kosten tabel 2015'!A149 -> 14600 | C149: ='kosten tabel 2015'!H149 -> 3825 | D149: ='kosten tabel 2015'!I149 -> 4628.25
A150: ='kosten tabel 2015'!A150 -> 14700 | C150: ='kosten tabel 2015'!H150 -> 3825 | D150: ='kosten tabel 2015'!I150 -> 4628.25
A151: ='kosten tabel 2015'!A151 -> 14800 | C151: ='kosten tabel 2015'!H151 -> 3825 | D151: ='kosten tabel 2015'!I151 -> 4628.25
A152: ='kosten tabel 2015'!A152 -> 14900 | C152: ='kosten tabel 2015'!H152 -> 3825 | D152: ='kosten tabel 2015'!I152 -> 4628.25
A153: ='kosten tabel 2015'!A153 -> 15000 | C153: ='kosten tabel 2015'!H153 -> 3825 | D153: ='kosten tabel 2015'!I153 -> 4628.25
A154: ='kosten tabel 2015'!A154 -> 15100 | C154: ='kosten tabel 2015'!H154 -> 3825 | D154: ='kosten tabel 2015'!I154 -> 4628.25
A155: ='kosten tabel 2015'!A155 -> 15200 | C155: ='kosten tabel 2015'!H155 -> 3825 | D155: ='kosten tabel 2015'!I155 -> 4628.25
A156: ='kosten tabel 2015'!A156 -> 15300 | C156: ='kosten tabel 2015'!H156 -> 3925 | D156: ='kosten tabel 2015'!I156 -> 4749.25
A157: ='kosten tabel 2015'!A157 -> 15400 | C157: ='kosten tabel 2015'!H157 -> 3925 | D157: ='kosten tabel 2015'!I157 -> 4749.25
A158: ='kosten tabel 2015'!A158 -> 15500 | C158: ='kosten tabel 2015'!H158 -> 3925 | D158: ='kosten tabel 2015'!I158 -> 4749.25
A159: ='kosten tabel 2015'!A159 -> 15600 | C159: ='kosten tabel 2015'!H159 -> 3925 | D159: ='kosten tabel 2015'!I159 -> 4749.25
A160: ='kosten tabel 2015'!A160 -> 15700 | C160: ='kosten tabel 2015'!H160 -> 3925 | D160: ='kosten tabel 2015'!I160 -> 4749.25
A161: ='kosten tabel 2015'!A161 -> 15800 | C161: ='kosten tabel 2015'!H161 -> 3925 | D161: ='kosten tabel 2015'!I161 -> 4749.25
A162: ='kosten tabel 2015'!A162 -> 15900 | C162: ='kosten tabel 2015'!H162 -> 3925 | D162: ='kosten tabel 2015'!I162 -> 4749.25
A163: ='kosten tabel 2015'!A163 -> 16000 | C163: ='kosten tabel 2015'!H163 -> 3925 | D163: ='kosten tabel 2015'!I163 -> 4749.25
A164: ='kosten tabel 2015'!A164 -> 16100 | C164: ='kosten tabel 2015'!H164 -> 3925 | D164: ='kosten tabel 2015'!I164 -> 4749.25
A165: ='kosten tabel 2015'!A165 -> 16200 | C165: ='kosten tabel 2015'!H165 -> 4025 | D165: ='kosten tabel 2015'!I165 -> 4870.25
A166: ='kosten tabel 2015'!A166 -> 16300 | C166: ='kosten tabel 2015'!H166 -> 4025 | D166: ='kosten tabel 2015'!I166 -> 4870.25
A167: ='kosten tabel 2015'!A167 -> 16400 | C167: ='kosten tabel 2015'!H167 -> 4025 | D167: ='kosten tabel 2015'!I167 -> 4870.25
A168: ='kosten tabel 2015'!A168 -> 16500 | C168: ='kosten tabel 2015'!H168 -> 4025 | D168: ='kosten tabel 2015'!I168 -> 4870.25
A169: ='kosten tabel 2015'!A169 -> 16600 | C169: ='kosten tabel 2015'!H169 -> 4025 | D169: ='kosten tabel 2015'!I169 -> 4870.25
A170: ='kosten tabel 2015'!A170 -> 16700 | C170: ='kosten tabel 2015'!H170 -> 4025 | D170: ='kosten tabel 2015'!I170 -> 4870.25
A171: ='kosten tabel 2015'!A171 -> 16800 | C171: ='kosten tabel 2015'!H171 -> 4025 | D171: ='kosten tabel 2015'!I171 -> 4870.25
A172: ='kosten tabel 2015'!A172 -> 16900 | C172: ='kosten tabel 2015'!H172 -> 4025 | D172: ='kosten tabel 2015'!I172 -> 4870.25
A173: ='kosten tabel 2015'!A173 -> 17000 | C173: ='kosten tabel 2015'!H173 -> 4025 | D173: ='kosten tabel 2015'!I173 -> 4870.25
A174: ='kosten tabel 2015'!A174 -> 17100 | C174: ='kosten tabel 2015'!H174 -> 4125 | D174: ='kosten tabel 2015'!I174 -> 4991.25
A175: ='kosten tabel 2015'!A175 -> 17200 | C175: ='kosten tabel 2015'!H175 -> 4125 | D175: ='kosten tabel 2015'!I175 -> 4991.25
A176: ='kosten tabel 2015'!A176 -> 17300 | C176: ='kosten tabel 2015'!H176 -> 4125 | D176: ='kosten tabel 2015'!I176 -> 4991.25
A177: ='kosten tabel 2015'!A177 -> 17400 | C177: ='kosten tabel 2015'!H177 -> 4125 | D177: ='kosten tabel 2015'!I177 -> 4991.25
A178: ='kosten tabel 2015'!A178 -> 17500 | C178: ='kosten tabel 2015'!H178 -> 4125 | D178: ='kosten tabel 2015'!I178 -> 4991.25
A179: ='kosten tabel 2015'!A179 -> 17600 | C179: ='kosten tabel 2015'!H179 -> 4125 | D179: ='kosten tabel 2015'!I179 -> 4991.25
A180: ='kosten tabel 2015'!A180 -> 17700 | C180: ='kosten tabel 2015'!H180 -> 4125 | D180: ='kosten tabel 2015'!I180 -> 4991.25
A181: ='kosten tabel 2015'!A181 -> 17800 | C181: ='kosten tabel 2015'!H181 -> 4125 | D181: ='kosten tabel 2015'!I181 -> 4991.25
A182: ='kosten tabel 2015'!A182 -> 17900 | C182: ='kosten tabel 2015'!H182 -> 4125 | D182: ='kosten tabel 2015'!I182 -> 4991.25
A183: ='kosten tabel 2015'!A183 -> 18000 | C183: ='kosten tabel 2015'!H183 -> 4225 | D183: ='kosten tabel 2015'!I183 -> 5112.25
A184: ='kosten tabel 2015'!A184 -> 18100 | C184: ='kosten tabel 2015'!H184 -> 4225 | D184: ='kosten tabel 2015'!I184 -> 5112.25
A185: ='kosten tabel 2015'!A185 -> 18200 | C185: ='kosten tabel 2015'!H185 -> 4225 | D185: ='kosten tabel 2015'!I185 -> 5112.25
A186: ='kosten tabel 2015'!A186 -> 18300 | C186: ='kosten tabel 2015'!H186 -> 4225 | D186: ='kosten tabel 2015'!I186 -> 5112.25
A187: ='kosten tabel 2015'!A187 -> 18400 | C187: ='kosten tabel 2015'!H187 -> 4225 | D187: ='kosten tabel 2015'!I187 -> 5112.25
A188: ='kosten tabel 2015'!A188 -> 18500 | C188: ='kosten tabel 2015'!H188 -> 4225 | D188: ='kosten tabel 2015'!I188 -> 5112.25
A189: ='kosten tabel 2015'!A189 -> 18600 | C189: ='kosten tabel 2015'!H189 -> 4225 | D189: ='kosten tabel 2015'!I189 -> 5112.25
A190: ='kosten tabel 2015'!A190 -> 18700 | C190: ='kosten tabel 2015'!H190 -> 4225 | D190: ='kosten tabel 2015'!I190 -> 5112.25
A191: ='kosten tabel 2015'!A191 -> 18800 | C191: ='kosten tabel 2015'!H191 -> 4225 | D191: ='kosten tabel 2015'!I191 -> 5112.25
A192: ='kosten tabel 2015'!A192 -> 18900 | C192: ='kosten tabel 2015'!H192 -> 4225 | D192: ='kosten tabel 2015'!I192 -> 5112.25
A193: ='kosten tabel 2015'!A193 -> 19000 | C193: ='kosten tabel 2015'!H193 -> 4325 | D193: ='kosten tabel 2015'!I193 -> 5233.25
A194: ='kosten tabel 2015'!A194 -> 19100 | C194: ='kosten tabel 2015'!H194 -> 4325 | D194: ='kosten tabel 2015'!I194 -> 5233.25
A195: ='kosten tabel 2015'!A195 -> 19200 | C195: ='kosten tabel 2015'!H195 -> 4325 | D195: ='kosten tabel 2015'!I195 -> 5233.25
A196: ='kosten tabel 2015'!A196 -> 19300 | C196: ='kosten tabel 2015'!H196 -> 4325 | D196: ='kosten tabel 2015'!I196 -> 5233.25
A197: ='kosten tabel 2015'!A197 -> 19400 | C197: ='kosten tabel 2015'!H197 -> 4325 | D197: ='kosten tabel 2015'!I197 -> 5233.25
A198: ='kosten tabel 2015'!A198 -> 19500 | C198: ='kosten tabel 2015'!H198 -> 4325 | D198: ='kosten tabel 2015'!I198 -> 5233.25
A199: ='kosten tabel 2015'!A199 -> 19600 | C199: ='kosten tabel 2015'!H199 -> 4325 | D199: ='kosten tabel 2015'!I199 -> 5233.25
A200: ='kosten tabel 2015'!A200 -> 19700 | C200: ='kosten tabel 2015'!H200 -> 4325 | D200: ='kosten tabel 2015'!I200 -> 5233.25
A201: ='kosten tabel 2015'!A201 -> 19800 | C201: ='kosten tabel 2015'!H201 -> 4325 | D201: ='kosten tabel 2015'!I201 -> 5233.25
... 9802 more rows

Sheet Berekening BGK
G1: toevoeging voor PIV rekenmodule | K1: De berekening
B2: Convenant BGK Letsel (belangenbehartigers) | K2: Afronding invoer naar boven | N2: =ROUNDUP(C6/100,0)*100 -> 0
B3: ="Berekening BGK, versie van "&H5&" geldend vanaf " &H6 -> Berekening BGK, versie van 19-1-2015 geldend vanaf 1-1-2015 | K3: BGK excl btw | N3: =IF(N2<=0,0,IF(N2>'kosten tabel 2015'!A10003,"Bedrag te hoog",VLOOKUP(N2,'kosten tabel 2015'!A4:I10003,8,FALSE))) -> 0
B4: =IF(H38<1,"",H36) -> VUL EEN BEDRAG IN | K4: bgk incl btw | N4: =IF(N2<=0,0,IF(N2>'kosten tabel 2015'!A10003,"Bedrag te hoog",VLOOKUP(N2,'kosten tabel 2015'!A4:I10003,9,FALSE))) -> 0
B5: =IF(H21<1,"Invoer",H19) -> Invoer | G5: Versie | H5: 19-1-2015
B6: In te voeren schadebedrag | G6: vanaf | H6: 1-1-2015
G7: Bruikbaar tot | H7: 1-3-2016 | I7: later raadpleegbaar
B8: Resultaat | G8: Geldig tot | H8: 1-1-2015
B9: Buitengerechtelijke kosten excl. BTW | C9: =IF(H38>0,"invoer onjuist",N3) -> invoer onjuist
B10: Buitengerechtelijke kosten incl. BTW | C10: =IF(H38>0,"invoer onjuist",N4) -> invoer onjuist
G11: Errorhandling
H12: Waarschuwingen
H13: =IF(NOW()>H7,1,"") ->  | I13: VERVANG DE MODULE
H14: =IF(NOW()>H8,1,"") ->  | I14: ="DE MODULE IS GELDIG TOT "& TEXT(H8,"dd-mm-jj") -> DE MODULE IS GELDIG TOT 01-01-15
H19: =IF(ISERROR(VLOOKUP(1,H13:I17,2,FALSE))=TRUE,"",VLOOKUP(1,H13:I17,2,FALSE)) -> 
H21: =SUM(H13:H17) -> 0 | I21: Controle aanwezigheid fout voor niet zichtbaar resultaat.
H26: Fouten
H27: =IF(NOW()>H7,1,"") ->  | I27: DE MODULE IS NIET MEER BRUIKBAAR
H28: =IF(ISERROR(VALUE(C6))=TRUE,1,"") ->  | I28: GEEN GETAL INGEVULD
H29: =IF(C6="",1,"") -> 1 | I29: VUL EEN BEDRAG IN
H30: =IF(C6<=0,1,"") -> 1 | I30: VUL EEN POSITIEF BEDRAG IN
H31: =IF(C6>1000000,1,"") ->  | I31: DE OVEREENKOMST GELDT TOT € 1.000.000
H36: =IF(ISERROR(VLOOKUP(1,H27:I35,2,FALSE))=TRUE,"",VLOOKUP(1,H27:I35,2,FALSE)) -> VUL EEN BEDRAG IN
H38: =SUM(H27:H35) -> 2 | I38: Controle aanwezigheid fout voor niet zichtbaar resultaat.

Sheet uitleg (hidden)
A1: Voeg werkbladen uitleg, tabel, Berekening BGK in
A2: Sla op in xls of xlsm formaat
A3: Kopieer de inhoud van het werkblad uitleg, tabel en van Berekening BGK naar het nieuwe werkblad
A4: pas de houdbaarheidsgegevens aan, met bruikbaarheid tot 10 jaar later
A5: Controleer of de tabel in biv. kosten tabel 2012 hetzelfde formaat als in het oude blad heeft en pas zonodig aan
A7: Vervang in het werkblad Berekening BGK en het werkblad Tabel bijv. [2011-05-02 bgk bbh 2011 def.xls]kosten tabel 2011 door kosten tabel 2012
A9: plak de waarden van de bladen tabel oud en nieuw in een nieuwe spreadsheet en vergelijk of er verschil inzit.
A10: Controleer met de verschillen de verschillen tussen de oude en nieuwe spreadsheets in de bladen Berekening bgk
A11: pas de gegevens van houdbaarheid in Berekening bgk aan
A12: kopieer de macro's van oud naar nieuw en controleer die.
A14: test de macro's na opslaan

Sheet indexcijfers (hidden)
B1: index CAO-lonen particuliere bedrijven / fin. en zakelijke dienstverlening (1972=100) per maand inclusief bijzondere beloningen (Bron: CBS)
A4: 1994 | B4: 294
A5: 1995 | B5: 297 | C5: =B5/B4-1 -> 0.01020408163 | D5: index CAO-lonen particuliere bedrijven / fin. en zakelijke dienstverlening
A6: 1996 | B6: 302 | C6: 0.01683501684 | D6: index CAO-lonen particuliere bedrijven / fin. en zakelijke dienstverlening
A7: 1997 | B7: 308 | C7: 0.01986754967 | D7: index CAO-lonen particuliere bedrijven / fin. en zakelijke dienstverlening
A8: 1998 | B8: 317 | C8: 0.02922077922 | D8: index CAO-lonen particuliere bedrijven / fin. en zakelijke dienstverlening
A9: 1999 | B9: 325 | C9: 0.02523659306 | D9: index CAO-lonen particuliere bedrijven / fin. en zakelijke dienstverlening
A10: 2000 | B10: 335 | C10: 0.03076923077 | D10: index CAO-lonen particuliere bedrijven / fin. en zakelijke dienstverlening
A11: 2001 | B11: 354 | C11: 0.05671641791 | D11: index CAO-lonen particuliere bedrijven / fin. en zakelijke dienstverlening
A12: 2002 | B12: 366 | C12: 0.03389830508 | D12: index CAO-lonen particuliere bedrijven / fin. en zakelijke dienstverlening
A13: 2003 | C13: 0.026 | D13: index CAO-lonen particuliere bedrijven / fin. en zakelijke dienstverlening
A15: index cao lonen per maand inclusief bijzonder beloningen, particuliere bedrijven, Financiele en zakelijke dienstverlening indexcijfers (2000=100)
B16: jaarmutatie
A17: 2004 | B17: 0.014 | C17: jaarcijfer denifitief
A18: 2005 | B18: 0.009 | C18: jaarcijfer denifitief
A19: 2006 | B19: 0.022 | C19: jaarcijfer definitief
A20: 2007 | B20: 0.018 | C20: jaarcijfer definitief
A21: 2008 | B21: 0.035 | C21: jaarcijfer definitief
A22: 2009 | B22: 0.022 | C22: jaarcijfer definitief
A23: 2010 | B23: 0.01 | C23: jaarcijfer definitief
A24: 2011 | B24: 0.013 | C24: jaarcijfer definitief
A25: 2012 | B25: 0.015 | C25: jaarcijfer definitief
A26: 2013 | B26: 0.01 | C26: jaarcijfer definitief
A27: 2014 | B27: 0.011 | C27: (Bron; CBS stand van november, op 8-12-2014)
A29: Consumentenprijsindex, alle huishoudens (jaarmutatie) (Bron: CBS)
B30: jaarmutatie
A31: 2001 | B31: 0.042 | C31: jaarcijfer definitief
A32: 2002 | B32: 0.033 | C32: jaarcijfer definitief
A33: 2003 | B33: 0.021 | C33: jaarcijfer definitief
A34: 2004 | B34: 0.012 | C34: jaarcijfer definitief
A35: 2005 | B35: 0.017 | C35: jaarcijfer definitief
A36: 2006 | B36: 0.012 | C36: jaarcijfer definitief
A37: 2007 | B37: 0.016 | C37: jaarcijfer definitief
A38: 2008 | B38: 0.025 | C38: jaarcijfer definitief
A39: 2009 | B39: 0.012 | C39: jaarcijfer definitief
A40: 2010 | B40: 0.013 | C40: jaarcijfer definitief
A41: 2011 | B41: 0.023 | C41: jaarcijfer definitief
A42: 2012 | B42: 0.025 | C42: jaarcijfer definitief
A43: 2013 | B43: 0.025 | C43: jaarcijfer definitief
A44: 2014 | B44: 0.01 | C44: (Bron; CBS stand van november, op 8-12-2014)
A50: Cao-lonen, contractuele loonkosten en arbeidsduur; indexcijfers (2000=100)
A51: Versie | B51: Huidige cijfers
A52: SBI'93 | B52: 65-74 Financiële/zakelijke dienstv.
A53: Onderwerpen | B53: Jaarmutatie
A54: Onderwerpen | B54: Cao-lonen per maand incl.bijz.beloningen
A55: Cao-sectoren | B55: Totaal cao-sectoren
